{"text_format":"3","workbook":"xlsx","n_sheets":4,"sheets":["Puan İzleme Aracı","Performansınız","Ayarlar","Hesaplamalar"],"not_rendered":{"defined_names":3,"comments":1},"read":"whole","date_system":"1900"}

{"sheet":"Puan İzleme Aracı","index":0,"n_rows":14,"n_cols":6,"rows_kept":14}
[null,"Puanlarınızı Buraya Girin"]
[]
[null,null,"Ders","Tür","Açıklama","Puan"]
[null,null,"Modern Fransızca","Ev Ödevi","2. Dünya Savaşı Tarihi",{"v":0.8,"d":"80%"}]
[null,null,"Java'da Gelişmiş Programlama","Dönem Ortası",null,{"v":0.75,"d":"75%"}]
[null,null,"İspanyolca","Ev Ödevi",null,{"v":0.5,"d":"50%"}]
[null,null,"Teorik Fizik","Ev Ödevi",null,{"v":0.95,"d":"95%"}]
[null,null,"Modern Fransızca","Ev Ödevi","1. Dünya Savaşı Tarihi",{"v":0.9,"d":"90%"}]
[null,null,"Modern Fransızca","Ev Ödevi","Sayfa 30 - 41",{"v":0.8,"d":"80%"}]
[null,null,"Kompozisyon","Deneme","İkna ödevi",{"v":0.95,"d":"95%"}]
[null,null,"Matematik 1","Ev Ödevi","Sayfa 21 ve 26",{"v":0.8,"d":"80%"}]
[null,null,"Matematik 2","Ev Ödevi","Sayaf 15 ve 18",{"v":0.85,"d":"85%"}]
[null,null,"Matematik 1","Ev Ödevi","Sayfa 34 - 36",{"v":0.8,"d":"80%"}]
[null,null,"Matematik 2","Ara Sınav",null,{"v":0.95,"d":"95%"}]

{"sheet":"Performansınız","index":1,"n_rows":31,"n_cols":8,"rows_kept":31}
[null,"Performansınız"]
[]
[null,null,"Toplamlar"]
[null,null,{"$f":"\"Saatler: \"&SUM(tblDersler[Kredi Saatleri])","v":"Saatler: 24"},{"$f":"AVERAGE(D7:D31)","v":{"v":0.8104761904761906,"d":"81%"}},{"$f":"AVERAGE(E7:E31)","v":{"v":2.7142857142857144,"d":"2.71"}},{"$f":"SUM(F7:F31)","v":{"v":2.625,"d":"2.63"}},{"$f":"IFERROR(HLOOKUP(D4,lstNotOrtalamasıEşlemesi,2),\"\")","v":"B-"}]
[]
[null,null,"Dersler","%","Not Ortalaması","Ağr. Not Ort.","Harf","Genel Performans"]
[null,null,{"$f":"Hesaplamalar!C6","v":"Modern Fransızca"},{"$f":"Hesaplamalar!AL6","v":{"v":0.8333333333333334,"d":"83%"}},{"$f":"Hesaplamalar!AM6","v":{"v":3,"d":"3.00"}},{"$f":"IFERROR(E7*Ayarlar!D9/SUM(tblDersler[Kredi Saatleri]),\"\")","v":{"v":0.375,"d":"0.38"}},{"$f":"Hesaplamalar!AN6","v":"B"}]
[null,null,{"$f":"Hesaplamalar!C7","v":"Teorik Fizik"},{"$f":"Hesaplamalar!AL7","v":{"v":0.95,"d":"95%"}},{"$f":"Hesaplamalar!AM7","v":{"v":4,"d":"4.00"}},{"$f":"IFERROR(E8*Ayarlar!D10/SUM(tblDersler[Kredi Saatleri]),\"\")","v":{"v":0.5,"d":"0.50"}},{"$f":"Hesaplamalar!AN7","v":"A"}]
[null,null,{"$f":"Hesaplamalar!C8","v":"Matematik 1"},{"$f":"Hesaplamalar!AL8","v":{"v":0.8000000000000002,"d":"80%"}},{"$f":"Hesaplamalar!AM8","v":2.67},{"$f":"IFERROR(E9*Ayarlar!D11/SUM(tblDersler[Kredi Saatleri]),\"\")","v":{"v":0.445,"d":"0.45"}},{"$f":"Hesaplamalar!AN8","v":"B-"}]
[null,null,{"$f":"Hesaplamalar!C9","v":"Matematik 2"},{"$f":"Hesaplamalar!AL9","v":{"v":0.89,"d":"89%"}},{"$f":"Hesaplamalar!AM9","v":3.33},{"$f":"IFERROR(E10*Ayarlar!D12/SUM(tblDersler[Kredi Saatleri]),\"\")","v":{"v":0.555,"d":"0.56"}},{"$f":"Hesaplamalar!AN9","v":"B+"}]
[null,null,{"$f":"Hesaplamalar!C10","v":"Java'da Gelişmiş Programlama"},{"$f":"Hesaplamalar!AL10","v":{"v":0.7500000000000001,"d":"75%"}},{"$f":"Hesaplamalar!AM10","v":{"v":2,"d":"2.00"}},{"$f":"IFERROR(E11*Ayarlar!D13/SUM(tblDersler[Kredi Saatleri]),\"\")","v":{"v":0.4166666666666667,"d":"0.42"}},{"$f":"Hesaplamalar!AN10","v":"C"}]
[null,null,{"$f":"Hesaplamalar!C11","v":"İspanyolca"},{"$f":"Hesaplamalar!AL11","v":{"v":0.5,"d":"50%"}},{"$f":"Hesaplamalar!AM11","v":{"v":0,"d":"0.00"}},{"$f":"IFERROR(E12*Ayarlar!D14/SUM(tblDersler[Kredi Saatleri]),\"\")","v":{"v":0,"d":"0.00"}},{"$f":"Hesaplamalar!AN11","v":"F"}]
[null,null,{"$f":"Hesaplamalar!C12","v":"Kompozisyon"},{"$f":"Hesaplamalar!AL12","v":{"v":0.95,"d":"95%"}},{"$f":"Hesaplamalar!AM12","v":{"v":4,"d":"4.00"}},{"$f":"IFERROR(E13*Ayarlar!D15/SUM(tblDersler[Kredi Saatleri]),\"\")","v":{"v":0.3333333333333333,"d":"0.33"}},{"$f":"Hesaplamalar!AN12","v":"A"}]
[null,null,{"$f":"Hesaplamalar!C13","v":""},{"$f":"Hesaplamalar!AL13","v":""},{"$f":"Hesaplamalar!AM13","v":""},{"$f":"IFERROR(E14*Ayarlar!D16/SUM(tblDersler[Kredi Saatleri]),\"\")","v":""},{"$f":"Hesaplamalar!AN13","v":""}]
[null,null,{"$f":"Hesaplamalar!C14","v":""},{"$f":"Hesaplamalar!AL14","v":""},{"$f":"Hesaplamalar!AM14","v":""},{"$f":"IFERROR(E15*Ayarlar!D17/SUM(tblDersler[Kredi Saatleri]),\"\")","v":""},{"$f":"Hesaplamalar!AN14","v":""}]
[null,null,{"$f":"Hesaplamalar!C15","v":""},{"$f":"Hesaplamalar!AL15","v":""},{"$f":"Hesaplamalar!AM15","v":""},{"$f":"IFERROR(E16*Ayarlar!D18/SUM(tblDersler[Kredi Saatleri]),\"\")","v":""},{"$f":"Hesaplamalar!AN15","v":""}]
[null,null,{"$f":"Hesaplamalar!C16","v":""},{"$f":"Hesaplamalar!AL16","v":""},{"$f":"Hesaplamalar!AM16","v":""},{"$f":"IFERROR(E17*Ayarlar!D19/SUM(tblDersler[Kredi Saatleri]),\"\")","v":""},{"$f":"Hesaplamalar!AN16","v":""}]
[null,null,{"$f":"Hesaplamalar!C17","v":""},{"$f":"Hesaplamalar!AL17","v":""},{"$f":"Hesaplamalar!AM17","v":""},{"$f":"IFERROR(E18*Ayarlar!D20/SUM(tblDersler[Kredi Saatleri]),\"\")","v":""},{"$f":"Hesaplamalar!AN17","v":""}]
[null,null,{"$f":"Hesaplamalar!C18","v":""},{"$f":"Hesaplamalar!AL18","v":""},{"$f":"Hesaplamalar!AM18","v":""},{"$f":"IFERROR(E19*Ayarlar!D21/SUM(tblDersler[Kredi Saatleri]),\"\")","v":""},{"$f":"Hesaplamalar!AN18","v":""}]
[null,null,{"$f":"Hesaplamalar!C19","v":""},{"$f":"Hesaplamalar!AL19","v":""},{"$f":"Hesaplamalar!AM19","v":""},{"$f":"IFERROR(E20*Ayarlar!D22/SUM(tblDersler[Kredi Saatleri]),\"\")","v":""},{"$f":"Hesaplamalar!AN19","v":""}]
[null,null,{"$f":"Hesaplamalar!C20","v":""},{"$f":"Hesaplamalar!AL20","v":""},{"$f":"Hesaplamalar!AM20","v":""},{"$f":"IFERROR(E21*Ayarlar!D23/SUM(tblDersler[Kredi Saatleri]),\"\")","v":""},{"$f":"Hesaplamalar!AN20","v":""}]
[null,null,{"$f":"Hesaplamalar!C21","v":""},{"$f":"Hesaplamalar!AL21","v":""},{"$f":"Hesaplamalar!AM21","v":""},{"$f":"IFERROR(E22*Ayarlar!D24/SUM(tblDersler[Kredi Saatleri]),\"\")","v":""},{"$f":"Hesaplamalar!AN21","v":""}]
[null,null,{"$f":"Hesaplamalar!C22","v":""},{"$f":"Hesaplamalar!AL22","v":""},{"$f":"Hesaplamalar!AM22","v":""},{"$f":"IFERROR(E23*Ayarlar!D25/SUM(tblDersler[Kredi Saatleri]),\"\")","v":""},{"$f":"Hesaplamalar!AN22","v":""}]
[null,null,{"$f":"Hesaplamalar!C23","v":""},{"$f":"Hesaplamalar!AL23","v":""},{"$f":"Hesaplamalar!AM23","v":""},{"$f":"IFERROR(E24*Ayarlar!D26/SUM(tblDersler[Kredi Saatleri]),\"\")","v":""},{"$f":"Hesaplamalar!AN23","v":""}]
[null,null,{"$f":"Hesaplamalar!C24","v":""},{"$f":"Hesaplamalar!AL24","v":""},{"$f":"Hesaplamalar!AM24","v":""},{"$f":"IFERROR(E25*Ayarlar!D27/SUM(tblDersler[Kredi Saatleri]),\"\")","v":""},{"$f":"Hesaplamalar!AN24","v":""}]
[null,null,{"$f":"Hesaplamalar!C25","v":""},{"$f":"Hesaplamalar!AL25","v":""},{"$f":"Hesaplamalar!AM25","v":""},{"$f":"IFERROR(E26*Ayarlar!D28/SUM(tblDersler[Kredi Saatleri]),\"\")","v":""},{"$f":"Hesaplamalar!AN25","v":""}]
[null,null,{"$f":"Hesaplamalar!C26","v":""},{"$f":"Hesaplamalar!AL26","v":""},{"$f":"Hesaplamalar!AM26","v":""},{"$f":"IFERROR(E27*Ayarlar!D29/SUM(tblDersler[Kredi Saatleri]),\"\")","v":""},{"$f":"Hesaplamalar!AN26","v":""}]
[null,null,{"$f":"Hesaplamalar!C27","v":""},{"$f":"Hesaplamalar!AL27","v":""},{"$f":"Hesaplamalar!AM27","v":""},{"$f":"IFERROR(E28*Ayarlar!D30/SUM(tblDersler[Kredi Saatleri]),\"\")","v":""},{"$f":"Hesaplamalar!AN27","v":""}]
[null,null,{"$f":"Hesaplamalar!C28","v":""},{"$f":"Hesaplamalar!AL28","v":""},{"$f":"Hesaplamalar!AM28","v":""},{"$f":"IFERROR(E29*Ayarlar!D31/SUM(tblDersler[Kredi Saatleri]),\"\")","v":""},{"$f":"Hesaplamalar!AN28","v":""}]
[null,null,{"$f":"Hesaplamalar!C29","v":""},{"$f":"Hesaplamalar!AL29","v":""},{"$f":"Hesaplamalar!AM29","v":""},{"$f":"IFERROR(E30*Ayarlar!D32/SUM(tblDersler[Kredi Saatleri]),\"\")","v":""},{"$f":"Hesaplamalar!AN29","v":""}]
[null,null,{"$f":"Hesaplamalar!C30","v":""},{"$f":"Hesaplamalar!AL30","v":""},{"$f":"Hesaplamalar!AM30","v":""},{"$f":"IFERROR(E31*Ayarlar!D33/SUM(tblDersler[Kredi Saatleri]),\"\")","v":""},{"$f":"Hesaplamalar!AN30","v":""}]

{"sheet":"Ayarlar","index":2,"n_rows":15,"n_cols":16,"rows_kept":15,"merged":[[5,2,5,15]]}
[null,"Ayarlar"]
[null,null,"Puanlar ve Not Ortalaması eşlemesi"]
[null,null,"Yüzde",{"v":0,"d":"0%"},{"v":0.6,"d":"60%"},{"v":0.63,"d":"63%"},{"v":0.67,"d":"67%"},{"v":0.7,"d":"70%"},{"v":0.73,"d":"73%"},{"v":0.77,"d":"77%"},{"v":0.8,"d":"80%"},{"v":0.83,"d":"83%"},{"v":0.87,"d":"87%"},{"v":0.9,"d":"90%"},{"v":0.93,"d":"93%"},{"v":0.97,"d":"97%"}]
[null,null,"Harf Notu","F","D-","D","D+","C-","C","C+","B-","B","B+","A-","A","A+"]
[null,null,"Not Ortalaması",0,0.67,1,1.33,1.67,2,2.33,2.67,3,3.33,3.67,4,4]
[]
[null,null,"25 derse kadar ağırlıklı puanlar"]
[null,null,"Gördüğünüz dersler","Kredi Saatleri","Ev Ödevi","Deneme","Ara Sınav","Proje","Dönem Ortası","Final Sınavı","Diğer","% Toplam"]
[null,null,"Modern Fransızca",{"v":3,"d":"3.0"},{"v":0.1,"d":"10%"},{"v":0.15,"d":"15%"},{"v":0.15,"d":"15%"},{"v":0.1,"d":"10%"},{"v":0.2,"d":"20%"},{"v":0.3,"d":"30%"},null,{"$f":"SUM(tblDersler[[#This Row],[Ev Ödevi]:[Diğer]])","v":{"v":1,"d":"100%"}}]
[null,null,"Teorik Fizik",{"v":3,"d":"3.0"},{"v":0.15,"d":"15%"},{"v":0.15,"d":"15%"},{"v":0.1,"d":"10%"},{"v":0.1,"d":"10%"},{"v":0.15,"d":"15%"},{"v":0.3,"d":"30%"},{"v":0.05,"d":"5%"},{"$f":"SUM(tblDersler[[#This Row],[Ev Ödevi]:[Diğer]])","v":{"v":1,"d":"100%"}}]
[null,null,"Matematik 1",{"v":4,"d":"4.0"},{"v":0.1,"d":"10%"},{"v":0.15,"d":"15%"},{"v":0.15,"d":"15%"},{"v":0.1,"d":"10%"},{"v":0.2,"d":"20%"},{"v":0.3,"d":"30%"},null,{"$f":"SUM(tblDersler[[#This Row],[Ev Ödevi]:[Diğer]])","v":{"v":1,"d":"100%"}}]
[null,null,"Matematik 2",{"v":4,"d":"4.0"},{"v":0.15,"d":"15%"},{"v":0.15,"d":"15%"},{"v":0.1,"d":"10%"},{"v":0.1,"d":"10%"},{"v":0.15,"d":"15%"},{"v":0.3,"d":"30%"},{"v":0.05,"d":"5%"},{"$f":"SUM(tblDersler[[#This Row],[Ev Ödevi]:[Diğer]])","v":{"v":1,"d":"100%"}}]
[null,null,"Java'da Gelişmiş Programlama",{"v":5,"d":"5.0"},{"v":0.15,"d":"15%"},{"v":0.15,"d":"15%"},{"v":0.1,"d":"10%"},{"v":0.1,"d":"10%"},{"v":0.2,"d":"20%"},{"v":0.3,"d":"30%"},null,{"$f":"SUM(tblDersler[[#This Row],[Ev Ödevi]:[Diğer]])","v":{"v":1,"d":"100%"}}]
[null,null,"İspanyolca",{"v":3,"d":"3.0"},{"v":0.1,"d":"10%"},{"v":0.15,"d":"15%"},{"v":0.17,"d":"17%"},{"v":0.13,"d":"13%"},{"v":0.2,"d":"20%"},{"v":0.2,"d":"20%"},{"v":0.05,"d":"5%"},{"$f":"SUM(tblDersler[[#This Row],[Ev Ödevi]:[Diğer]])","v":{"v":1,"d":"100%"}}]
[null,null,"Kompozisyon",{"v":2,"d":"2.0"},{"v":0.15,"d":"15%"},{"v":0.15,"d":"15%"},{"v":0.12,"d":"12%"},{"v":0.15,"d":"15%"},{"v":0.15,"d":"15%"},{"v":0.25,"d":"25%"},{"v":0.03,"d":"3%"},{"$f":"SUM(tblDersler[[#This Row],[Ev Ödevi]:[Diğer]])","v":{"v":1,"d":"100%"}}]

{"sheet":"Hesaplamalar","index":3,"n_rows":657,"n_cols":40,"rows_kept":657,"hidden":true}
[null,"Hesaplamalar"]
[null,null,"Bu çalışma sayfasında notlarınıza ve ortalama notunuza ilişkin hesaplamalar verilmektedir ve sayfa gizli kalmalıdır. Bu sayfada herhangi bir değişiklik yapılması hatalara yol açabilir."]
[]
[null,null,"Mevcut Ders Listesi","Puanlar (1 üzerinden)",{"$nulls":24},"Not Hesaplama"]
[null,null,"Ders",1,2,3,4,5,6,7,8,9,10,11,12,13,14,15,16,17,18,19,20,21,22,23,24,25,{"$f":"tblDersler[[#Headers],[Ev Ödevi]]","v":"Ev Ödevi"},{"$f":"tblDersler[[#Headers],[Deneme]]","v":"Deneme"},{"$f":"tblDersler[[#Headers],[Ara Sınav]]","v":"Ara Sınav"},{"$f":"tblDersler[[#Headers],[Proje]]","v":"Proje"},{"$f":"tblDersler[[#Headers],[Dönem Ortası]]","v":"Dönem Ortası"},{"$f":"tblDersler[[#Headers],[Final Sınavı]]","v":"Final Sınavı"},{"$f":"tblDersler[[#Headers],[Diğer]]","v":"Diğer"},"Toplam","Toplam Olası Puanlar","Toplam %","Not Puanı","Harf Notu"]
[null,null,{"$f":"IF(Ayarlar!C9=\"\",\"\",Ayarlar!C9)","v":"Modern Fransızca"},{"$f":"IFERROR(INDEX(tblDersNotları[],MATCH($C6:$C30&D$5:AB$5,Hesaplamalar!$C$33:$C$657,0),4),\"\")","v":{"v":0.8,"d":"80%"}},{"v":0.9,"d":"90%"},{"v":0.8,"d":"80%"},"","","","","","","","","","","","","","","","","","","","","","",{"$f":"IFERROR(AVERAGEIFS(tblDersNotları[Puan],tblDersNotları[Ders],Hesaplamalar!$C6,tblDersNotları[Tür],Hesaplamalar!AC$5)*Ayarlar!E9,\"\")","v":0.08333333333333334},{"$f":"IFERROR(AVERAGEIFS(tblDersNotları[Puan],tblDersNotları[Ders],Hesaplamalar!$C6,tblDersNotları[Tür],Hesaplamalar!AD$5)*Ayarlar!F9,\"\")","v":""},{"$f":"IFERROR(AVERAGEIFS(tblDersNotları[Puan],tblDersNotları[Ders],Hesaplamalar!$C6,tblDersNotları[Tür],Hesaplamalar!AE$5)*Ayarlar!G9,\"\")","v":""},{"$f":"IFERROR(AVERAGEIFS(tblDersNotları[Puan],tblDersNotları[Ders],Hesaplamalar!$C6,tblDersNotları[Tür],Hesaplamalar!AF$5)*Ayarlar!H9,\"\")","v":""},{"$f":"IFERROR(AVERAGEIFS(tblDersNotları[Puan],tblDersNotları[Ders],Hesaplamalar!$C6,tblDersNotları[Tür],Hesaplamalar!AG$5)*Ayarlar!I9,\"\")","v":""},{"$f":"IFERROR(AVERAGEIFS(tblDersNotları[Puan],tblDersNotları[Ders],Hesaplamalar!$C6,tblDersNotları[Tür],Hesaplamalar!AH$5)*Ayarlar!J9,\"\")","v":""},{"$f":"IFERROR(AVERAGEIFS(tblDersNotları[Puan],tblDersNotları[Ders],Hesaplamalar!$C6,tblDersNotları[Tür],Hesaplamalar!AI$5)*Ayarlar!K9,\"\")","v":""},{"$f":"SUM(AC6:AI6)","v":0.08333333333333334},{"$f":"SUMIFS(Ayarlar!E9:K9,Hesaplamalar!AC6:AI6,\">0\")","v":0.1},{"$f":"IFERROR(AJ6/AK6,\"\")","v":{"v":0.8333333333333334,"d":"83%"}},{"$f":"IFERROR(HLOOKUP(AL6,lstNotOrtalamasıEşlemesi,3),\"\")","v":3},{"$f":"IFERROR(HLOOKUP(AL6,lstNotOrtalamasıEşlemesi,2),\"\")","v":"B"}]
[null,null,{"$f":"IF(Ayarlar!C10=\"\",\"\",Ayarlar!C10)","v":"Teorik Fizik"},{"v":0.95,"d":"95%"},"","","","","","","","","","","","","","","","","","","","","","","","",{"$f":"IFERROR(AVERAGEIFS(tblDersNotları[Puan],tblDersNotları[Ders],Hesaplamalar!$C7,tblDersNotları[Tür],Hesaplamalar!AC$5)*Ayarlar!E10,\"\")","v":0.1425},{"$f":"IFERROR(AVERAGEIFS(tblDersNotları[Puan],tblDersNotları[Ders],Hesaplamalar!$C7,tblDersNotları[Tür],Hesaplamalar!AD$5)*Ayarlar!F10,\"\")","v":""},{"$f":"IFERROR(AVERAGEIFS(tblDersNotları[Puan],tblDersNotları[Ders],Hesaplamalar!$C7,tblDersNotları[Tür],Hesaplamalar!AE$5)*Ayarlar!G10,\"\")","v":""},{"$f":"IFERROR(AVERAGEIFS(tblDersNotları[Puan],tblDersNotları[Ders],Hesaplamalar!$C7,tblDersNotları[Tür],Hesaplamalar!AF$5)*Ayarlar!H10,\"\")","v":""},{"$f":"IFERROR(AVERAGEIFS(tblDersNotları[Puan],tblDersNotları[Ders],Hesaplamalar!$C7,tblDersNotları[Tür],Hesaplamalar!AG$5)*Ayarlar!I10,\"\")","v":""},{"$f":"IFERROR(AVERAGEIFS(tblDersNotları[Puan],tblDersNotları[Ders],Hesaplamalar!$C7,tblDersNotları[Tür],Hesaplamalar!AH$5)*Ayarlar!J10,\"\")","v":""},{"$f":"IFERROR(AVERAGEIFS(tblDersNotları[Puan],tblDersNotları[Ders],Hesaplamalar!$C7,tblDersNotları[Tür],Hesaplamalar!AI$5)*Ayarlar!K10,\"\")","v":""},{"$f":"SUM(AC7:AI7)","v":0.1425},{"$f":"SUMIFS(Ayarlar!E10:K10,Hesaplamalar!AC7:AI7,\">0\")","v":0.15},{"$f":"IFERROR(AJ7/AK7,\"\")","v":{"v":0.95,"d":"95%"}},4,"A"]
[null,null,{"$f":"IF(Ayarlar!C11=\"\",\"\",Ayarlar!C11)","v":"Matematik 1"},{"v":0.8,"d":"80%"},{"v":0.8,"d":"80%"},"","","","","","","","","","","","","","","","","","","","","","","",{"$f":"IFERROR(AVERAGEIFS(tblDersNotları[Puan],tblDersNotları[Ders],Hesaplamalar!$C8,tblDersNotları[Tür],Hesaplamalar!AC$5)*Ayarlar!E11,\"\")","v":0.08000000000000002},{"$f":"IFERROR(AVERAGEIFS(tblDersNotları[Puan],tblDersNotları[Ders],Hesaplamalar!$C8,tblDersNotları[Tür],Hesaplamalar!AD$5)*Ayarlar!F11,\"\")","v":""},{"$f":"IFERROR(AVERAGEIFS(tblDersNotları[Puan],tblDersNotları[Ders],Hesaplamalar!$C8,tblDersNotları[Tür],Hesaplamalar!AE$5)*Ayarlar!G11,\"\")","v":""},{"$f":"IFERROR(AVERAGEIFS(tblDersNotları[Puan],tblDersNotları[Ders],Hesaplamalar!$C8,tblDersNotları[Tür],Hesaplamalar!AF$5)*Ayarlar!H11,\"\")","v":""},{"$f":"IFERROR(AVERAGEIFS(tblDersNotları[Puan],tblDersNotları[Ders],Hesaplamalar!$C8,tblDersNotları[Tür],Hesaplamalar!AG$5)*Ayarlar!I11,\"\")","v":""},{"$f":"IFERROR(AVERAGEIFS(tblDersNotları[Puan],tblDersNotları[Ders],Hesaplamalar!$C8,tblDersNotları[Tür],Hesaplamalar!AH$5)*Ayarlar!J11,\"\")","v":""},{"$f":"IFERROR(AVERAGEIFS(tblDersNotları[Puan],tblDersNotları[Ders],Hesaplamalar!$C8,tblDersNotları[Tür],Hesaplamalar!AI$5)*Ayarlar!K11,\"\")","v":""},0.08000000000000002,{"$f":"SUMIFS(Ayarlar!E11:K11,Hesaplamalar!AC8:AI8,\">0\")","v":0.1},{"v":0.8000000000000002,"d":"80%"},2.67,"B-"]
[null,null,{"$f":"IF(Ayarlar!C12=\"\",\"\",Ayarlar!C12)","v":"Matematik 2"},{"v":0.85,"d":"85%"},{"v":0.95,"d":"95%"},"","","","","","","","","","","","","","","","","","","","","","","",{"$f":"IFERROR(AVERAGEIFS(tblDersNotları[Puan],tblDersNotları[Ders],Hesaplamalar!$C9,tblDersNotları[Tür],Hesaplamalar!AC$5)*Ayarlar!E12,\"\")","v":0.1275},{"$f":"IFERROR(AVERAGEIFS(tblDersNotları[Puan],tblDersNotları[Ders],Hesaplamalar!$C9,tblDersNotları[Tür],Hesaplamalar!AD$5)*Ayarlar!F12,\"\")","v":""},{"$f":"IFERROR(AVERAGEIFS(tblDersNotları[Puan],tblDersNotları[Ders],Hesaplamalar!$C9,tblDersNotları[Tür],Hesaplamalar!AE$5)*Ayarlar!G12,\"\")","v":0.095},{"$f":"IFERROR(AVERAGEIFS(tblDersNotları[Puan],tblDersNotları[Ders],Hesaplamalar!$C9,tblDersNotları[Tür],Hesaplamalar!AF$5)*Ayarlar!H12,\"\")","v":""},{"$f":"IFERROR(AVERAGEIFS(tblDersNotları[Puan],tblDersNotları[Ders],Hesaplamalar!$C9,tblDersNotları[Tür],Hesaplamalar!AG$5)*Ayarlar!I12,\"\")","v":""},{"$f":"IFERROR(AVERAGEIFS(tblDersNotları[Puan],tblDersNotları[Ders],Hesaplamalar!$C9,tblDersNotları[Tür],Hesaplamalar!AH$5)*Ayarlar!J12,\"\")","v":""},{"$f":"IFERROR(AVERAGEIFS(tblDersNotları[Puan],tblDersNotları[Ders],Hesaplamalar!$C9,tblDersNotları[Tür],Hesaplamalar!AI$5)*Ayarlar!K12,\"\")","v":""},0.2225,{"$f":"SUMIFS(Ayarlar!E12:K12,Hesaplamalar!AC9:AI9,\">0\")","v":0.25},{"v":0.89,"d":"89%"},3.33,"B+"]
[null,null,{"$f":"IF(Ayarlar!C13=\"\",\"\",Ayarlar!C13)","v":"Java'da Gelişmiş Programlama"},{"v":0.75,"d":"75%"},"","","","","","","","","","","","","","","","","","","","","","","","",{"$f":"IFERROR(AVERAGEIFS(tblDersNotları[Puan],tblDersNotları[Ders],Hesaplamalar!$C10,tblDersNotları[Tür],Hesaplamalar!AC$5)*Ayarlar!E13,\"\")","v":""},{"$f":"IFERROR(AVERAGEIFS(tblDersNotları[Puan],tblDersNotları[Ders],Hesaplamalar!$C10,tblDersNotları[Tür],Hesaplamalar!AD$5)*Ayarlar!F13,\"\")","v":""},{"$f":"IFERROR(AVERAGEIFS(tblDersNotları[Puan],tblDersNotları[Ders],Hesaplamalar!$C10,tblDersNotları[Tür],Hesaplamalar!AE$5)*Ayarlar!G13,\"\")","v":""},{"$f":"IFERROR(AVERAGEIFS(tblDersNotları[Puan],tblDersNotları[Ders],Hesaplamalar!$C10,tblDersNotları[Tür],Hesaplamalar!AF$5)*Ayarlar!H13,\"\")","v":""},{"$f":"IFERROR(AVERAGEIFS(tblDersNotları[Puan],tblDersNotları[Ders],Hesaplamalar!$C10,tblDersNotları[Tür],Hesaplamalar!AG$5)*Ayarlar!I13,\"\")","v":0.15000000000000002},{"$f":"IFERROR(AVERAGEIFS(tblDersNotları[Puan],tblDersNotları[Ders],Hesaplamalar!$C10,tblDersNotları[Tür],Hesaplamalar!AH$5)*Ayarlar!J13,\"\")","v":""},{"$f":"IFERROR(AVERAGEIFS(tblDersNotları[Puan],tblDersNotları[Ders],Hesaplamalar!$C10,tblDersNotları[Tür],Hesaplamalar!AI$5)*Ayarlar!K13,\"\")","v":""},0.15000000000000002,{"$f":"SUMIFS(Ayarlar!E13:K13,Hesaplamalar!AC10:AI10,\">0\")","v":0.2},{"v":0.7500000000000001,"d":"75%"},2,"C"]
[null,null,{"$f":"IF(Ayarlar!C14=\"\",\"\",Ayarlar!C14)","v":"İspanyolca"},{"v":0.5,"d":"50%"},"","","","","","","","","","","","","","","","","","","","","","","","",{"$f":"IFERROR(AVERAGEIFS(tblDersNotları[Puan],tblDersNotları[Ders],Hesaplamalar!$C11,tblDersNotları[Tür],Hesaplamalar!AC$5)*Ayarlar!E14,\"\")","v":0.05},{"$f":"IFERROR(AVERAGEIFS(tblDersNotları[Puan],tblDersNotları[Ders],Hesaplamalar!$C11,tblDersNotları[Tür],Hesaplamalar!AD$5)*Ayarlar!F14,\"\")","v":""},{"$f":"IFERROR(AVERAGEIFS(tblDersNotları[Puan],tblDersNotları[Ders],Hesaplamalar!$C11,tblDersNotları[Tür],Hesaplamalar!AE$5)*Ayarlar!G14,\"\")","v":""},{"$f":"IFERROR(AVERAGEIFS(tblDersNotları[Puan],tblDersNotları[Ders],Hesaplamalar!$C11,tblDersNotları[Tür],Hesaplamalar!AF$5)*Ayarlar!H14,\"\")","v":""},{"$f":"IFERROR(AVERAGEIFS(tblDersNotları[Puan],tblDersNotları[Ders],Hesaplamalar!$C11,tblDersNotları[Tür],Hesaplamalar!AG$5)*Ayarlar!I14,\"\")","v":""},{"$f":"IFERROR(AVERAGEIFS(tblDersNotları[Puan],tblDersNotları[Ders],Hesaplamalar!$C11,tblDersNotları[Tür],Hesaplamalar!AH$5)*Ayarlar!J14,\"\")","v":""},{"$f":"IFERROR(AVERAGEIFS(tblDersNotları[Puan],tblDersNotları[Ders],Hesaplamalar!$C11,tblDersNotları[Tür],Hesaplamalar!AI$5)*Ayarlar!K14,\"\")","v":""},0.05,{"$f":"SUMIFS(Ayarlar!E14:K14,Hesaplamalar!AC11:AI11,\">0\")","v":0.1},{"v":0.5,"d":"50%"},0,"F"]
[null,null,{"$f":"IF(Ayarlar!C15=\"\",\"\",Ayarlar!C15)","v":"Kompozisyon"},{"v":0.95,"d":"95%"},"","","","","","","","","","","","","","","","","","","","","","","","",{"$f":"IFERROR(AVERAGEIFS(tblDersNotları[Puan],tblDersNotları[Ders],Hesaplamalar!$C12,tblDersNotları[Tür],Hesaplamalar!AC$5)*Ayarlar!E15,\"\")","v":""},{"$f":"IFERROR(AVERAGEIFS(tblDersNotları[Puan],tblDersNotları[Ders],Hesaplamalar!$C12,tblDersNotları[Tür],Hesaplamalar!AD$5)*Ayarlar!F15,\"\")","v":0.1425},{"$f":"IFERROR(AVERAGEIFS(tblDersNotları[Puan],tblDersNotları[Ders],Hesaplamalar!$C12,tblDersNotları[Tür],Hesaplamalar!AE$5)*Ayarlar!G15,\"\")","v":""},{"$f":"IFERROR(AVERAGEIFS(tblDersNotları[Puan],tblDersNotları[Ders],Hesaplamalar!$C12,tblDersNotları[Tür],Hesaplamalar!AF$5)*Ayarlar!H15,\"\")","v":""},{"$f":"IFERROR(AVERAGEIFS(tblDersNotları[Puan],tblDersNotları[Ders],Hesaplamalar!$C12,tblDersNotları[Tür],Hesaplamalar!AG$5)*Ayarlar!I15,\"\")","v":""},{"$f":"IFERROR(AVERAGEIFS(tblDersNotları[Puan],tblDersNotları[Ders],Hesaplamalar!$C12,tblDersNotları[Tür],Hesaplamalar!AH$5)*Ayarlar!J15,\"\")","v":""},{"$f":"IFERROR(AVERAGEIFS(tblDersNotları[Puan],tblDersNotları[Ders],Hesaplamalar!$C12,tblDersNotları[Tür],Hesaplamalar!AI$5)*Ayarlar!K15,\"\")","v":""},0.1425,{"$f":"SUMIFS(Ayarlar!E15:K15,Hesaplamalar!AC12:AI12,\">0\")","v":0.15},{"v":0.95,"d":"95%"},4,"A"]
[null,null,{"$f":"IF(Ayarlar!C16=\"\",\"\",Ayarlar!C16)","v":""},"","","","","","","","","","","","","","","","","","","","","","","","","",{"$f":"IFERROR(AVERAGEIFS(tblDersNotları[Puan],tblDersNotları[Ders],Hesaplamalar!$C13,tblDersNotları[Tür],Hesaplamalar!AC$5)*Ayarlar!E16,\"\")","v":""},{"$f":"IFERROR(AVERAGEIFS(tblDersNotları[Puan],tblDersNotları[Ders],Hesaplamalar!$C13,tblDersNotları[Tür],Hesaplamalar!AD$5)*Ayarlar!F16,\"\")","v":""},{"$f":"IFERROR(AVERAGEIFS(tblDersNotları[Puan],tblDersNotları[Ders],Hesaplamalar!$C13,tblDersNotları[Tür],Hesaplamalar!AE$5)*Ayarlar!G16,\"\")","v":""},{"$f":"IFERROR(AVERAGEIFS(tblDersNotları[Puan],tblDersNotları[Ders],Hesaplamalar!$C13,tblDersNotları[Tür],Hesaplamalar!AF$5)*Ayarlar!H16,\"\")","v":""},{"$f":"IFERROR(AVERAGEIFS(tblDersNotları[Puan],tblDersNotları[Ders],Hesaplamalar!$C13,tblDersNotları[Tür],Hesaplamalar!AG$5)*Ayarlar!I16,\"\")","v":""},{"$f":"IFERROR(AVERAGEIFS(tblDersNotları[Puan],tblDersNotları[Ders],Hesaplamalar!$C13,tblDersNotları[Tür],Hesaplamalar!AH$5)*Ayarlar!J16,\"\")","v":""},{"$f":"IFERROR(AVERAGEIFS(tblDersNotları[Puan],tblDersNotları[Ders],Hesaplamalar!$C13,tblDersNotları[Tür],Hesaplamalar!AI$5)*Ayarlar!K16,\"\")","v":""},{"$f":"SUM(AC13:AI13)","v":0},{"$f":"SUMIFS(Ayarlar!E16:K16,Hesaplamalar!AC13:AI13,\">0\")","v":0},{"$f":"IFERROR(AJ13/AK13,\"\")","v":""},"",""]
[null,null,{"$f":"IF(Ayarlar!C17=\"\",\"\",Ayarlar!C17)","v":""},"","","","","","","","","","","","","","","","","","","","","","","","","",{"$f":"IFERROR(AVERAGEIFS(tblDersNotları[Puan],tblDersNotları[Ders],Hesaplamalar!$C14,tblDersNotları[Tür],Hesaplamalar!AC$5)*Ayarlar!E17,\"\")","v":""},{"$f":"IFERROR(AVERAGEIFS(tblDersNotları[Puan],tblDersNotları[Ders],Hesaplamalar!$C14,tblDersNotları[Tür],Hesaplamalar!AD$5)*Ayarlar!F17,\"\")","v":""},{"$f":"IFERROR(AVERAGEIFS(tblDersNotları[Puan],tblDersNotları[Ders],Hesaplamalar!$C14,tblDersNotları[Tür],Hesaplamalar!AE$5)*Ayarlar!G17,\"\")","v":""},{"$f":"IFERROR(AVERAGEIFS(tblDersNotları[Puan],tblDersNotları[Ders],Hesaplamalar!$C14,tblDersNotları[Tür],Hesaplamalar!AF$5)*Ayarlar!H17,\"\")","v":""},{"$f":"IFERROR(AVERAGEIFS(tblDersNotları[Puan],tblDersNotları[Ders],Hesaplamalar!$C14,tblDersNotları[Tür],Hesaplamalar!AG$5)*Ayarlar!I17,\"\")","v":""},{"$f":"IFERROR(AVERAGEIFS(tblDersNotları[Puan],tblDersNotları[Ders],Hesaplamalar!$C14,tblDersNotları[Tür],Hesaplamalar!AH$5)*Ayarlar!J17,\"\")","v":""},{"$f":"IFERROR(AVERAGEIFS(tblDersNotları[Puan],tblDersNotları[Ders],Hesaplamalar!$C14,tblDersNotları[Tür],Hesaplamalar!AI$5)*Ayarlar!K17,\"\")","v":""},0,{"$f":"SUMIFS(Ayarlar!E17:K17,Hesaplamalar!AC14:AI14,\">0\")","v":0},"","",""]
[null,null,{"$f":"IF(Ayarlar!C18=\"\",\"\",Ayarlar!C18)","v":""},"","","","","","","","","","","","","","","","","","","","","","","","","",{"$f":"IFERROR(AVERAGEIFS(tblDersNotları[Puan],tblDersNotları[Ders],Hesaplamalar!$C15,tblDersNotları[Tür],Hesaplamalar!AC$5)*Ayarlar!E18,\"\")","v":""},{"$f":"IFERROR(AVERAGEIFS(tblDersNotları[Puan],tblDersNotları[Ders],Hesaplamalar!$C15,tblDersNotları[Tür],Hesaplamalar!AD$5)*Ayarlar!F18,\"\")","v":""},{"$f":"IFERROR(AVERAGEIFS(tblDersNotları[Puan],tblDersNotları[Ders],Hesaplamalar!$C15,tblDersNotları[Tür],Hesaplamalar!AE$5)*Ayarlar!G18,\"\")","v":""},{"$f":"IFERROR(AVERAGEIFS(tblDersNotları[Puan],tblDersNotları[Ders],Hesaplamalar!$C15,tblDersNotları[Tür],Hesaplamalar!AF$5)*Ayarlar!H18,\"\")","v":""},{"$f":"IFERROR(AVERAGEIFS(tblDersNotları[Puan],tblDersNotları[Ders],Hesaplamalar!$C15,tblDersNotları[Tür],Hesaplamalar!AG$5)*Ayarlar!I18,\"\")","v":""},{"$f":"IFERROR(AVERAGEIFS(tblDersNotları[Puan],tblDersNotları[Ders],Hesaplamalar!$C15,tblDersNotları[Tür],Hesaplamalar!AH$5)*Ayarlar!J18,\"\")","v":""},{"$f":"IFERROR(AVERAGEIFS(tblDersNotları[Puan],tblDersNotları[Ders],Hesaplamalar!$C15,tblDersNotları[Tür],Hesaplamalar!AI$5)*Ayarlar!K18,\"\")","v":""},0,{"$f":"SUMIFS(Ayarlar!E18:K18,Hesaplamalar!AC15:AI15,\">0\")","v":0},"","",""]
[null,null,{"$f":"IF(Ayarlar!C19=\"\",\"\",Ayarlar!C19)","v":""},"","","","","","","","","","","","","","","","","","","","","","","","","",{"$f":"IFERROR(AVERAGEIFS(tblDersNotları[Puan],tblDersNotları[Ders],Hesaplamalar!$C16,tblDersNotları[Tür],Hesaplamalar!AC$5)*Ayarlar!E19,\"\")","v":""},{"$f":"IFERROR(AVERAGEIFS(tblDersNotları[Puan],tblDersNotları[Ders],Hesaplamalar!$C16,tblDersNotları[Tür],Hesaplamalar!AD$5)*Ayarlar!F19,\"\")","v":""},{"$f":"IFERROR(AVERAGEIFS(tblDersNotları[Puan],tblDersNotları[Ders],Hesaplamalar!$C16,tblDersNotları[Tür],Hesaplamalar!AE$5)*Ayarlar!G19,\"\")","v":""},{"$f":"IFERROR(AVERAGEIFS(tblDersNotları[Puan],tblDersNotları[Ders],Hesaplamalar!$C16,tblDersNotları[Tür],Hesaplamalar!AF$5)*Ayarlar!H19,\"\")","v":""},{"$f":"IFERROR(AVERAGEIFS(tblDersNotları[Puan],tblDersNotları[Ders],Hesaplamalar!$C16,tblDersNotları[Tür],Hesaplamalar!AG$5)*Ayarlar!I19,\"\")","v":""},{"$f":"IFERROR(AVERAGEIFS(tblDersNotları[Puan],tblDersNotları[Ders],Hesaplamalar!$C16,tblDersNotları[Tür],Hesaplamalar!AH$5)*Ayarlar!J19,\"\")","v":""},{"$f":"IFERROR(AVERAGEIFS(tblDersNotları[Puan],tblDersNotları[Ders],Hesaplamalar!$C16,tblDersNotları[Tür],Hesaplamalar!AI$5)*Ayarlar!K19,\"\")","v":""},0,{"$f":"SUMIFS(Ayarlar!E19:K19,Hesaplamalar!AC16:AI16,\">0\")","v":0},"","",""]
[null,null,{"$f":"IF(Ayarlar!C20=\"\",\"\",Ayarlar!C20)","v":""},"","","","","","","","","","","","","","","","","","","","","","","","","",{"$f":"IFERROR(AVERAGEIFS(tblDersNotları[Puan],tblDersNotları[Ders],Hesaplamalar!$C17,tblDersNotları[Tür],Hesaplamalar!AC$5)*Ayarlar!E20,\"\")","v":""},{"$f":"IFERROR(AVERAGEIFS(tblDersNotları[Puan],tblDersNotları[Ders],Hesaplamalar!$C17,tblDersNotları[Tür],Hesaplamalar!AD$5)*Ayarlar!F20,\"\")","v":""},{"$f":"IFERROR(AVERAGEIFS(tblDersNotları[Puan],tblDersNotları[Ders],Hesaplamalar!$C17,tblDersNotları[Tür],Hesaplamalar!AE$5)*Ayarlar!G20,\"\")","v":""},{"$f":"IFERROR(AVERAGEIFS(tblDersNotları[Puan],tblDersNotları[Ders],Hesaplamalar!$C17,tblDersNotları[Tür],Hesaplamalar!AF$5)*Ayarlar!H20,\"\")","v":""},{"$f":"IFERROR(AVERAGEIFS(tblDersNotları[Puan],tblDersNotları[Ders],Hesaplamalar!$C17,tblDersNotları[Tür],Hesaplamalar!AG$5)*Ayarlar!I20,\"\")","v":""},{"$f":"IFERROR(AVERAGEIFS(tblDersNotları[Puan],tblDersNotları[Ders],Hesaplamalar!$C17,tblDersNotları[Tür],Hesaplamalar!AH$5)*Ayarlar!J20,\"\")","v":""},{"$f":"IFERROR(AVERAGEIFS(tblDersNotları[Puan],tblDersNotları[Ders],Hesaplamalar!$C17,tblDersNotları[Tür],Hesaplamalar!AI$5)*Ayarlar!K20,\"\")","v":""},0,{"$f":"SUMIFS(Ayarlar!E20:K20,Hesaplamalar!AC17:AI17,\">0\")","v":0},"","",""]
[null,null,{"$f":"IF(Ayarlar!C21=\"\",\"\",Ayarlar!C21)","v":""},"","","","","","","","","","","","","","","","","","","","","","","","","",{"$f":"IFERROR(AVERAGEIFS(tblDersNotları[Puan],tblDersNotları[Ders],Hesaplamalar!$C18,tblDersNotları[Tür],Hesaplamalar!AC$5)*Ayarlar!E21,\"\")","v":""},{"$f":"IFERROR(AVERAGEIFS(tblDersNotları[Puan],tblDersNotları[Ders],Hesaplamalar!$C18,tblDersNotları[Tür],Hesaplamalar!AD$5)*Ayarlar!F21,\"\")","v":""},{"$f":"IFERROR(AVERAGEIFS(tblDersNotları[Puan],tblDersNotları[Ders],Hesaplamalar!$C18,tblDersNotları[Tür],Hesaplamalar!AE$5)*Ayarlar!G21,\"\")","v":""},{"$f":"IFERROR(AVERAGEIFS(tblDersNotları[Puan],tblDersNotları[Ders],Hesaplamalar!$C18,tblDersNotları[Tür],Hesaplamalar!AF$5)*Ayarlar!H21,\"\")","v":""},{"$f":"IFERROR(AVERAGEIFS(tblDersNotları[Puan],tblDersNotları[Ders],Hesaplamalar!$C18,tblDersNotları[Tür],Hesaplamalar!AG$5)*Ayarlar!I21,\"\")","v":""},{"$f":"IFERROR(AVERAGEIFS(tblDersNotları[Puan],tblDersNotları[Ders],Hesaplamalar!$C18,tblDersNotları[Tür],Hesaplamalar!AH$5)*Ayarlar!J21,\"\")","v":""},{"$f":"IFERROR(AVERAGEIFS(tblDersNotları[Puan],tblDersNotları[Ders],Hesaplamalar!$C18,tblDersNotları[Tür],Hesaplamalar!AI$5)*Ayarlar!K21,\"\")","v":""},0,{"$f":"SUMIFS(Ayarlar!E21:K21,Hesaplamalar!AC18:AI18,\">0\")","v":0},"","",""]
[null,null,{"$f":"IF(Ayarlar!C22=\"\",\"\",Ayarlar!C22)","v":""},"","","","","","","","","","","","","","","","","","","","","","","","","",{"$f":"IFERROR(AVERAGEIFS(tblDersNotları[Puan],tblDersNotları[Ders],Hesaplamalar!$C19,tblDersNotları[Tür],Hesaplamalar!AC$5)*Ayarlar!E22,\"\")","v":""},{"$f":"IFERROR(AVERAGEIFS(tblDersNotları[Puan],tblDersNotları[Ders],Hesaplamalar!$C19,tblDersNotları[Tür],Hesaplamalar!AD$5)*Ayarlar!F22,\"\")","v":""},{"$f":"IFERROR(AVERAGEIFS(tblDersNotları[Puan],tblDersNotları[Ders],Hesaplamalar!$C19,tblDersNotları[Tür],Hesaplamalar!AE$5)*Ayarlar!G22,\"\")","v":""},{"$f":"IFERROR(AVERAGEIFS(tblDersNotları[Puan],tblDersNotları[Ders],Hesaplamalar!$C19,tblDersNotları[Tür],Hesaplamalar!AF$5)*Ayarlar!H22,\"\")","v":""},{"$f":"IFERROR(AVERAGEIFS(tblDersNotları[Puan],tblDersNotları[Ders],Hesaplamalar!$C19,tblDersNotları[Tür],Hesaplamalar!AG$5)*Ayarlar!I22,\"\")","v":""},{"$f":"IFERROR(AVERAGEIFS(tblDersNotları[Puan],tblDersNotları[Ders],Hesaplamalar!$C19,tblDersNotları[Tür],Hesaplamalar!AH$5)*Ayarlar!J22,\"\")","v":""},{"$f":"IFERROR(AVERAGEIFS(tblDersNotları[Puan],tblDersNotları[Ders],Hesaplamalar!$C19,tblDersNotları[Tür],Hesaplamalar!AI$5)*Ayarlar!K22,\"\")","v":""},0,{"$f":"SUMIFS(Ayarlar!E22:K22,Hesaplamalar!AC19:AI19,\">0\")","v":0},"","",""]
[null,null,{"$f":"IF(Ayarlar!C23=\"\",\"\",Ayarlar!C23)","v":""},"","","","","","","","","","","","","","","","","","","","","","","","","",{"$f":"IFERROR(AVERAGEIFS(tblDersNotları[Puan],tblDersNotları[Ders],Hesaplamalar!$C20,tblDersNotları[Tür],Hesaplamalar!AC$5)*Ayarlar!E23,\"\")","v":""},{"$f":"IFERROR(AVERAGEIFS(tblDersNotları[Puan],tblDersNotları[Ders],Hesaplamalar!$C20,tblDersNotları[Tür],Hesaplamalar!AD$5)*Ayarlar!F23,\"\")","v":""},{"$f":"IFERROR(AVERAGEIFS(tblDersNotları[Puan],tblDersNotları[Ders],Hesaplamalar!$C20,tblDersNotları[Tür],Hesaplamalar!AE$5)*Ayarlar!G23,\"\")","v":""},{"$f":"IFERROR(AVERAGEIFS(tblDersNotları[Puan],tblDersNotları[Ders],Hesaplamalar!$C20,tblDersNotları[Tür],Hesaplamalar!AF$5)*Ayarlar!H23,\"\")","v":""},{"$f":"IFERROR(AVERAGEIFS(tblDersNotları[Puan],tblDersNotları[Ders],Hesaplamalar!$C20,tblDersNotları[Tür],Hesaplamalar!AG$5)*Ayarlar!I23,\"\")","v":""},{"$f":"IFERROR(AVERAGEIFS(tblDersNotları[Puan],tblDersNotları[Ders],Hesaplamalar!$C20,tblDersNotları[Tür],Hesaplamalar!AH$5)*Ayarlar!J23,\"\")","v":""},{"$f":"IFERROR(AVERAGEIFS(tblDersNotları[Puan],tblDersNotları[Ders],Hesaplamalar!$C20,tblDersNotları[Tür],Hesaplamalar!AI$5)*Ayarlar!K23,\"\")","v":""},0,{"$f":"SUMIFS(Ayarlar!E23:K23,Hesaplamalar!AC20:AI20,\">0\")","v":0},"","",""]
[null,null,{"$f":"IF(Ayarlar!C24=\"\",\"\",Ayarlar!C24)","v":""},"","","","","","","","","","","","","","","","","","","","","","","","","",{"$f":"IFERROR(AVERAGEIFS(tblDersNotları[Puan],tblDersNotları[Ders],Hesaplamalar!$C21,tblDersNotları[Tür],Hesaplamalar!AC$5)*Ayarlar!E24,\"\")","v":""},{"$f":"IFERROR(AVERAGEIFS(tblDersNotları[Puan],tblDersNotları[Ders],Hesaplamalar!$C21,tblDersNotları[Tür],Hesaplamalar!AD$5)*Ayarlar!F24,\"\")","v":""},{"$f":"IFERROR(AVERAGEIFS(tblDersNotları[Puan],tblDersNotları[Ders],Hesaplamalar!$C21,tblDersNotları[Tür],Hesaplamalar!AE$5)*Ayarlar!G24,\"\")","v":""},{"$f":"IFERROR(AVERAGEIFS(tblDersNotları[Puan],tblDersNotları[Ders],Hesaplamalar!$C21,tblDersNotları[Tür],Hesaplamalar!AF$5)*Ayarlar!H24,\"\")","v":""},{"$f":"IFERROR(AVERAGEIFS(tblDersNotları[Puan],tblDersNotları[Ders],Hesaplamalar!$C21,tblDersNotları[Tür],Hesaplamalar!AG$5)*Ayarlar!I24,\"\")","v":""},{"$f":"IFERROR(AVERAGEIFS(tblDersNotları[Puan],tblDersNotları[Ders],Hesaplamalar!$C21,tblDersNotları[Tür],Hesaplamalar!AH$5)*Ayarlar!J24,\"\")","v":""},{"$f":"IFERROR(AVERAGEIFS(tblDersNotları[Puan],tblDersNotları[Ders],Hesaplamalar!$C21,tblDersNotları[Tür],Hesaplamalar!AI$5)*Ayarlar!K24,\"\")","v":""},0,{"$f":"SUMIFS(Ayarlar!E24:K24,Hesaplamalar!AC21:AI21,\">0\")","v":0},"","",""]
[null,null,{"$f":"IF(Ayarlar!C25=\"\",\"\",Ayarlar!C25)","v":""},"","","","","","","","","","","","","","","","","","","","","","","","","",{"$f":"IFERROR(AVERAGEIFS(tblDersNotları[Puan],tblDersNotları[Ders],Hesaplamalar!$C22,tblDersNotları[Tür],Hesaplamalar!AC$5)*Ayarlar!E25,\"\")","v":""},{"$f":"IFERROR(AVERAGEIFS(tblDersNotları[Puan],tblDersNotları[Ders],Hesaplamalar!$C22,tblDersNotları[Tür],Hesaplamalar!AD$5)*Ayarlar!F25,\"\")","v":""},{"$f":"IFERROR(AVERAGEIFS(tblDersNotları[Puan],tblDersNotları[Ders],Hesaplamalar!$C22,tblDersNotları[Tür],Hesaplamalar!AE$5)*Ayarlar!G25,\"\")","v":""},{"$f":"IFERROR(AVERAGEIFS(tblDersNotları[Puan],tblDersNotları[Ders],Hesaplamalar!$C22,tblDersNotları[Tür],Hesaplamalar!AF$5)*Ayarlar!H25,\"\")","v":""},{"$f":"IFERROR(AVERAGEIFS(tblDersNotları[Puan],tblDersNotları[Ders],Hesaplamalar!$C22,tblDersNotları[Tür],Hesaplamalar!AG$5)*Ayarlar!I25,\"\")","v":""},{"$f":"IFERROR(AVERAGEIFS(tblDersNotları[Puan],tblDersNotları[Ders],Hesaplamalar!$C22,tblDersNotları[Tür],Hesaplamalar!AH$5)*Ayarlar!J25,\"\")","v":""},{"$f":"IFERROR(AVERAGEIFS(tblDersNotları[Puan],tblDersNotları[Ders],Hesaplamalar!$C22,tblDersNotları[Tür],Hesaplamalar!AI$5)*Ayarlar!K25,\"\")","v":""},0,{"$f":"SUMIFS(Ayarlar!E25:K25,Hesaplamalar!AC22:AI22,\">0\")","v":0},"","",""]
[null,null,{"$f":"IF(Ayarlar!C26=\"\",\"\",Ayarlar!C26)","v":""},"","","","","","","","","","","","","","","","","","","","","","","","","",{"$f":"IFERROR(AVERAGEIFS(tblDersNotları[Puan],tblDersNotları[Ders],Hesaplamalar!$C23,tblDersNotları[Tür],Hesaplamalar!AC$5)*Ayarlar!E26,\"\")","v":""},{"$f":"IFERROR(AVERAGEIFS(tblDersNotları[Puan],tblDersNotları[Ders],Hesaplamalar!$C23,tblDersNotları[Tür],Hesaplamalar!AD$5)*Ayarlar!F26,\"\")","v":""},{"$f":"IFERROR(AVERAGEIFS(tblDersNotları[Puan],tblDersNotları[Ders],Hesaplamalar!$C23,tblDersNotları[Tür],Hesaplamalar!AE$5)*Ayarlar!G26,\"\")","v":""},{"$f":"IFERROR(AVERAGEIFS(tblDersNotları[Puan],tblDersNotları[Ders],Hesaplamalar!$C23,tblDersNotları[Tür],Hesaplamalar!AF$5)*Ayarlar!H26,\"\")","v":""},{"$f":"IFERROR(AVERAGEIFS(tblDersNotları[Puan],tblDersNotları[Ders],Hesaplamalar!$C23,tblDersNotları[Tür],Hesaplamalar!AG$5)*Ayarlar!I26,\"\")","v":""},{"$f":"IFERROR(AVERAGEIFS(tblDersNotları[Puan],tblDersNotları[Ders],Hesaplamalar!$C23,tblDersNotları[Tür],Hesaplamalar!AH$5)*Ayarlar!J26,\"\")","v":""},{"$f":"IFERROR(AVERAGEIFS(tblDersNotları[Puan],tblDersNotları[Ders],Hesaplamalar!$C23,tblDersNotları[Tür],Hesaplamalar!AI$5)*Ayarlar!K26,\"\")","v":""},0,{"$f":"SUMIFS(Ayarlar!E26:K26,Hesaplamalar!AC23:AI23,\">0\")","v":0},"","",""]
[null,null,{"$f":"IF(Ayarlar!C27=\"\",\"\",Ayarlar!C27)","v":""},"","","","","","","","","","","","","","","","","","","","","","","","","",{"$f":"IFERROR(AVERAGEIFS(tblDersNotları[Puan],tblDersNotları[Ders],Hesaplamalar!$C24,tblDersNotları[Tür],Hesaplamalar!AC$5)*Ayarlar!E27,\"\")","v":""},{"$f":"IFERROR(AVERAGEIFS(tblDersNotları[Puan],tblDersNotları[Ders],Hesaplamalar!$C24,tblDersNotları[Tür],Hesaplamalar!AD$5)*Ayarlar!F27,\"\")","v":""},{"$f":"IFERROR(AVERAGEIFS(tblDersNotları[Puan],tblDersNotları[Ders],Hesaplamalar!$C24,tblDersNotları[Tür],Hesaplamalar!AE$5)*Ayarlar!G27,\"\")","v":""},{"$f":"IFERROR(AVERAGEIFS(tblDersNotları[Puan],tblDersNotları[Ders],Hesaplamalar!$C24,tblDersNotları[Tür],Hesaplamalar!AF$5)*Ayarlar!H27,\"\")","v":""},{"$f":"IFERROR(AVERAGEIFS(tblDersNotları[Puan],tblDersNotları[Ders],Hesaplamalar!$C24,tblDersNotları[Tür],Hesaplamalar!AG$5)*Ayarlar!I27,\"\")","v":""},{"$f":"IFERROR(AVERAGEIFS(tblDersNotları[Puan],tblDersNotları[Ders],Hesaplamalar!$C24,tblDersNotları[Tür],Hesaplamalar!AH$5)*Ayarlar!J27,\"\")","v":""},{"$f":"IFERROR(AVERAGEIFS(tblDersNotları[Puan],tblDersNotları[Ders],Hesaplamalar!$C24,tblDersNotları[Tür],Hesaplamalar!AI$5)*Ayarlar!K27,\"\")","v":""},0,{"$f":"SUMIFS(Ayarlar!E27:K27,Hesaplamalar!AC24:AI24,\">0\")","v":0},"","",""]
[null,null,{"$f":"IF(Ayarlar!C28=\"\",\"\",Ayarlar!C28)","v":""},"","","","","","","","","","","","","","","","","","","","","","","","","",{"$f":"IFERROR(AVERAGEIFS(tblDersNotları[Puan],tblDersNotları[Ders],Hesaplamalar!$C25,tblDersNotları[Tür],Hesaplamalar!AC$5)*Ayarlar!E28,\"\")","v":""},{"$f":"IFERROR(AVERAGEIFS(tblDersNotları[Puan],tblDersNotları[Ders],Hesaplamalar!$C25,tblDersNotları[Tür],Hesaplamalar!AD$5)*Ayarlar!F28,\"\")","v":""},{"$f":"IFERROR(AVERAGEIFS(tblDersNotları[Puan],tblDersNotları[Ders],Hesaplamalar!$C25,tblDersNotları[Tür],Hesaplamalar!AE$5)*Ayarlar!G28,\"\")","v":""},{"$f":"IFERROR(AVERAGEIFS(tblDersNotları[Puan],tblDersNotları[Ders],Hesaplamalar!$C25,tblDersNotları[Tür],Hesaplamalar!AF$5)*Ayarlar!H28,\"\")","v":""},{"$f":"IFERROR(AVERAGEIFS(tblDersNotları[Puan],tblDersNotları[Ders],Hesaplamalar!$C25,tblDersNotları[Tür],Hesaplamalar!AG$5)*Ayarlar!I28,\"\")","v":""},{"$f":"IFERROR(AVERAGEIFS(tblDersNotları[Puan],tblDersNotları[Ders],Hesaplamalar!$C25,tblDersNotları[Tür],Hesaplamalar!AH$5)*Ayarlar!J28,\"\")","v":""},{"$f":"IFERROR(AVERAGEIFS(tblDersNotları[Puan],tblDersNotları[Ders],Hesaplamalar!$C25,tblDersNotları[Tür],Hesaplamalar!AI$5)*Ayarlar!K28,\"\")","v":""},0,{"$f":"SUMIFS(Ayarlar!E28:K28,Hesaplamalar!AC25:AI25,\">0\")","v":0},"","",""]
[null,null,{"$f":"IF(Ayarlar!C29=\"\",\"\",Ayarlar!C29)","v":""},"","","","","","","","","","","","","","","","","","","","","","","","","",{"$f":"IFERROR(AVERAGEIFS(tblDersNotları[Puan],tblDersNotları[Ders],Hesaplamalar!$C26,tblDersNotları[Tür],Hesaplamalar!AC$5)*Ayarlar!E29,\"\")","v":""},{"$f":"IFERROR(AVERAGEIFS(tblDersNotları[Puan],tblDersNotları[Ders],Hesaplamalar!$C26,tblDersNotları[Tür],Hesaplamalar!AD$5)*Ayarlar!F29,\"\")","v":""},{"$f":"IFERROR(AVERAGEIFS(tblDersNotları[Puan],tblDersNotları[Ders],Hesaplamalar!$C26,tblDersNotları[Tür],Hesaplamalar!AE$5)*Ayarlar!G29,\"\")","v":""},{"$f":"IFERROR(AVERAGEIFS(tblDersNotları[Puan],tblDersNotları[Ders],Hesaplamalar!$C26,tblDersNotları[Tür],Hesaplamalar!AF$5)*Ayarlar!H29,\"\")","v":""},{"$f":"IFERROR(AVERAGEIFS(tblDersNotları[Puan],tblDersNotları[Ders],Hesaplamalar!$C26,tblDersNotları[Tür],Hesaplamalar!AG$5)*Ayarlar!I29,\"\")","v":""},{"$f":"IFERROR(AVERAGEIFS(tblDersNotları[Puan],tblDersNotları[Ders],Hesaplamalar!$C26,tblDersNotları[Tür],Hesaplamalar!AH$5)*Ayarlar!J29,\"\")","v":""},{"$f":"IFERROR(AVERAGEIFS(tblDersNotları[Puan],tblDersNotları[Ders],Hesaplamalar!$C26,tblDersNotları[Tür],Hesaplamalar!AI$5)*Ayarlar!K29,\"\")","v":""},0,{"$f":"SUMIFS(Ayarlar!E29:K29,Hesaplamalar!AC26:AI26,\">0\")","v":0},"","",""]
[null,null,{"$f":"IF(Ayarlar!C30=\"\",\"\",Ayarlar!C30)","v":""},"","","","","","","","","","","","","","","","","","","","","","","","","",{"$f":"IFERROR(AVERAGEIFS(tblDersNotları[Puan],tblDersNotları[Ders],Hesaplamalar!$C27,tblDersNotları[Tür],Hesaplamalar!AC$5)*Ayarlar!E30,\"\")","v":""},{"$f":"IFERROR(AVERAGEIFS(tblDersNotları[Puan],tblDersNotları[Ders],Hesaplamalar!$C27,tblDersNotları[Tür],Hesaplamalar!AD$5)*Ayarlar!F30,\"\")","v":""},{"$f":"IFERROR(AVERAGEIFS(tblDersNotları[Puan],tblDersNotları[Ders],Hesaplamalar!$C27,tblDersNotları[Tür],Hesaplamalar!AE$5)*Ayarlar!G30,\"\")","v":""},{"$f":"IFERROR(AVERAGEIFS(tblDersNotları[Puan],tblDersNotları[Ders],Hesaplamalar!$C27,tblDersNotları[Tür],Hesaplamalar!AF$5)*Ayarlar!H30,\"\")","v":""},{"$f":"IFERROR(AVERAGEIFS(tblDersNotları[Puan],tblDersNotları[Ders],Hesaplamalar!$C27,tblDersNotları[Tür],Hesaplamalar!AG$5)*Ayarlar!I30,\"\")","v":""},{"$f":"IFERROR(AVERAGEIFS(tblDersNotları[Puan],tblDersNotları[Ders],Hesaplamalar!$C27,tblDersNotları[Tür],Hesaplamalar!AH$5)*Ayarlar!J30,\"\")","v":""},{"$f":"IFERROR(AVERAGEIFS(tblDersNotları[Puan],tblDersNotları[Ders],Hesaplamalar!$C27,tblDersNotları[Tür],Hesaplamalar!AI$5)*Ayarlar!K30,\"\")","v":""},0,{"$f":"SUMIFS(Ayarlar!E30:K30,Hesaplamalar!AC27:AI27,\">0\")","v":0},"","",""]
[null,null,{"$f":"IF(Ayarlar!C31=\"\",\"\",Ayarlar!C31)","v":""},"","","","","","","","","","","","","","","","","","","","","","","","","",{"$f":"IFERROR(AVERAGEIFS(tblDersNotları[Puan],tblDersNotları[Ders],Hesaplamalar!$C28,tblDersNotları[Tür],Hesaplamalar!AC$5)*Ayarlar!E31,\"\")","v":""},{"$f":"IFERROR(AVERAGEIFS(tblDersNotları[Puan],tblDersNotları[Ders],Hesaplamalar!$C28,tblDersNotları[Tür],Hesaplamalar!AD$5)*Ayarlar!F31,\"\")","v":""},{"$f":"IFERROR(AVERAGEIFS(tblDersNotları[Puan],tblDersNotları[Ders],Hesaplamalar!$C28,tblDersNotları[Tür],Hesaplamalar!AE$5)*Ayarlar!G31,\"\")","v":""},{"$f":"IFERROR(AVERAGEIFS(tblDersNotları[Puan],tblDersNotları[Ders],Hesaplamalar!$C28,tblDersNotları[Tür],Hesaplamalar!AF$5)*Ayarlar!H31,\"\")","v":""},{"$f":"IFERROR(AVERAGEIFS(tblDersNotları[Puan],tblDersNotları[Ders],Hesaplamalar!$C28,tblDersNotları[Tür],Hesaplamalar!AG$5)*Ayarlar!I31,\"\")","v":""},{"$f":"IFERROR(AVERAGEIFS(tblDersNotları[Puan],tblDersNotları[Ders],Hesaplamalar!$C28,tblDersNotları[Tür],Hesaplamalar!AH$5)*Ayarlar!J31,\"\")","v":""},{"$f":"IFERROR(AVERAGEIFS(tblDersNotları[Puan],tblDersNotları[Ders],Hesaplamalar!$C28,tblDersNotları[Tür],Hesaplamalar!AI$5)*Ayarlar!K31,\"\")","v":""},0,{"$f":"SUMIFS(Ayarlar!E31:K31,Hesaplamalar!AC28:AI28,\">0\")","v":0},"","",""]
[null,null,{"$f":"IF(Ayarlar!C32=\"\",\"\",Ayarlar!C32)","v":""},"","","","","","","","","","","","","","","","","","","","","","","","","",{"$f":"IFERROR(AVERAGEIFS(tblDersNotları[Puan],tblDersNotları[Ders],Hesaplamalar!$C29,tblDersNotları[Tür],Hesaplamalar!AC$5)*Ayarlar!E32,\"\")","v":""},{"$f":"IFERROR(AVERAGEIFS(tblDersNotları[Puan],tblDersNotları[Ders],Hesaplamalar!$C29,tblDersNotları[Tür],Hesaplamalar!AD$5)*Ayarlar!F32,\"\")","v":""},{"$f":"IFERROR(AVERAGEIFS(tblDersNotları[Puan],tblDersNotları[Ders],Hesaplamalar!$C29,tblDersNotları[Tür],Hesaplamalar!AE$5)*Ayarlar!G32,\"\")","v":""},{"$f":"IFERROR(AVERAGEIFS(tblDersNotları[Puan],tblDersNotları[Ders],Hesaplamalar!$C29,tblDersNotları[Tür],Hesaplamalar!AF$5)*Ayarlar!H32,\"\")","v":""},{"$f":"IFERROR(AVERAGEIFS(tblDersNotları[Puan],tblDersNotları[Ders],Hesaplamalar!$C29,tblDersNotları[Tür],Hesaplamalar!AG$5)*Ayarlar!I32,\"\")","v":""},{"$f":"IFERROR(AVERAGEIFS(tblDersNotları[Puan],tblDersNotları[Ders],Hesaplamalar!$C29,tblDersNotları[Tür],Hesaplamalar!AH$5)*Ayarlar!J32,\"\")","v":""},{"$f":"IFERROR(AVERAGEIFS(tblDersNotları[Puan],tblDersNotları[Ders],Hesaplamalar!$C29,tblDersNotları[Tür],Hesaplamalar!AI$5)*Ayarlar!K32,\"\")","v":""},0,{"$f":"SUMIFS(Ayarlar!E32:K32,Hesaplamalar!AC29:AI29,\">0\")","v":0},"","",""]
[null,null,{"$f":"IF(Ayarlar!C33=\"\",\"\",Ayarlar!C33)","v":""},"","","","","","","","","","","","","","","","","","","","","","","","","",{"$f":"IFERROR(AVERAGEIFS(tblDersNotları[Puan],tblDersNotları[Ders],Hesaplamalar!$C30,tblDersNotları[Tür],Hesaplamalar!AC$5)*Ayarlar!E33,\"\")","v":""},{"$f":"IFERROR(AVERAGEIFS(tblDersNotları[Puan],tblDersNotları[Ders],Hesaplamalar!$C30,tblDersNotları[Tür],Hesaplamalar!AD$5)*Ayarlar!F33,\"\")","v":""},{"$f":"IFERROR(AVERAGEIFS(tblDersNotları[Puan],tblDersNotları[Ders],Hesaplamalar!$C30,tblDersNotları[Tür],Hesaplamalar!AE$5)*Ayarlar!G33,\"\")","v":""},{"$f":"IFERROR(AVERAGEIFS(tblDersNotları[Puan],tblDersNotları[Ders],Hesaplamalar!$C30,tblDersNotları[Tür],Hesaplamalar!AF$5)*Ayarlar!H33,\"\")","v":""},{"$f":"IFERROR(AVERAGEIFS(tblDersNotları[Puan],tblDersNotları[Ders],Hesaplamalar!$C30,tblDersNotları[Tür],Hesaplamalar!AG$5)*Ayarlar!I33,\"\")","v":""},{"$f":"IFERROR(AVERAGEIFS(tblDersNotları[Puan],tblDersNotları[Ders],Hesaplamalar!$C30,tblDersNotları[Tür],Hesaplamalar!AH$5)*Ayarlar!J33,\"\")","v":""},{"$f":"IFERROR(AVERAGEIFS(tblDersNotları[Puan],tblDersNotları[Ders],Hesaplamalar!$C30,tblDersNotları[Tür],Hesaplamalar!AI$5)*Ayarlar!K33,\"\")","v":""},0,{"$f":"SUMIFS(Ayarlar!E33:K33,Hesaplamalar!AC30:AI30,\">0\")","v":0},"","",""]
[]
[]
[null,1,{"$f":"'Puan İzleme Aracı'!C4&COUNTIF('Puan İzleme Aracı'!$C$4:C4,'Puan İzleme Aracı'!C4)","v":"Modern Fransızca1"}]
[null,2,{"$f":"'Puan İzleme Aracı'!C5&COUNTIF('Puan İzleme Aracı'!$C$4:C5,'Puan İzleme Aracı'!C5)","v":"Java'da Gelişmiş Programlama1"}]
[null,3,{"$f":"'Puan İzleme Aracı'!C6&COUNTIF('Puan İzleme Aracı'!$C$4:C6,'Puan İzleme Aracı'!C6)","v":"İspanyolca1"}]
[null,4,{"$f":"'Puan İzleme Aracı'!C7&COUNTIF('Puan İzleme Aracı'!$C$4:C7,'Puan İzleme Aracı'!C7)","v":"Teorik Fizik1"}]
[null,5,{"$f":"'Puan İzleme Aracı'!C8&COUNTIF('Puan İzleme Aracı'!$C$4:C8,'Puan İzleme Aracı'!C8)","v":"Modern Fransızca2"}]
[null,6,{"$f":"'Puan İzleme Aracı'!C9&COUNTIF('Puan İzleme Aracı'!$C$4:C9,'Puan İzleme Aracı'!C9)","v":"Modern Fransızca3"}]
[null,7,{"$f":"'Puan İzleme Aracı'!C10&COUNTIF('Puan İzleme Aracı'!$C$4:C10,'Puan İzleme Aracı'!C10)","v":"Kompozisyon1"}]
[null,8,{"$f":"'Puan İzleme Aracı'!C11&COUNTIF('Puan İzleme Aracı'!$C$4:C11,'Puan İzleme Aracı'!C11)","v":"Matematik 11"}]
[null,9,{"$f":"'Puan İzleme Aracı'!C12&COUNTIF('Puan İzleme Aracı'!$C$4:C12,'Puan İzleme Aracı'!C12)","v":"Matematik 21"}]
[null,10,{"$f":"'Puan İzleme Aracı'!C13&COUNTIF('Puan İzleme Aracı'!$C$4:C13,'Puan İzleme Aracı'!C13)","v":"Matematik 12"}]
[null,11,{"$f":"'Puan İzleme Aracı'!C14&COUNTIF('Puan İzleme Aracı'!$C$4:C14,'Puan İzleme Aracı'!C14)","v":"Matematik 22"}]
[null,12,{"$f":"'Puan İzleme Aracı'!C15&COUNTIF('Puan İzleme Aracı'!$C$4:C15,'Puan İzleme Aracı'!C15)","v":"0"}]
[null,13,{"$f":"'Puan İzleme Aracı'!C16&COUNTIF('Puan İzleme Aracı'!$C$4:C16,'Puan İzleme Aracı'!C16)","v":"0"}]
[null,14,{"$f":"'Puan İzleme Aracı'!C17&COUNTIF('Puan İzleme Aracı'!$C$4:C17,'Puan İzleme Aracı'!C17)","v":"0"}]
[null,15,{"$f":"'Puan İzleme Aracı'!C18&COUNTIF('Puan İzleme Aracı'!$C$4:C18,'Puan İzleme Aracı'!C18)","v":"0"}]
[null,16,{"$f":"'Puan İzleme Aracı'!C19&COUNTIF('Puan İzleme Aracı'!$C$4:C19,'Puan İzleme Aracı'!C19)","v":"0"}]
[null,17,{"$f":"'Puan İzleme Aracı'!C20&COUNTIF('Puan İzleme Aracı'!$C$4:C20,'Puan İzleme Aracı'!C20)","v":"0"}]
[null,18,{"$f":"'Puan İzleme Aracı'!C21&COUNTIF('Puan İzleme Aracı'!$C$4:C21,'Puan İzleme Aracı'!C21)","v":"0"}]
[null,19,{"$f":"'Puan İzleme Aracı'!C22&COUNTIF('Puan İzleme Aracı'!$C$4:C22,'Puan İzleme Aracı'!C22)","v":"0"}]
[null,20,{"$f":"'Puan İzleme Aracı'!C23&COUNTIF('Puan İzleme Aracı'!$C$4:C23,'Puan İzleme Aracı'!C23)","v":"0"}]
[null,21,{"$f":"'Puan İzleme Aracı'!C24&COUNTIF('Puan İzleme Aracı'!$C$4:C24,'Puan İzleme Aracı'!C24)","v":"0"}]
[null,22,{"$f":"'Puan İzleme Aracı'!C25&COUNTIF('Puan İzleme Aracı'!$C$4:C25,'Puan İzleme Aracı'!C25)","v":"0"}]
[null,23,{"$f":"'Puan İzleme Aracı'!C26&COUNTIF('Puan İzleme Aracı'!$C$4:C26,'Puan İzleme Aracı'!C26)","v":"0"}]
[null,24,{"$f":"'Puan İzleme Aracı'!C27&COUNTIF('Puan İzleme Aracı'!$C$4:C27,'Puan İzleme Aracı'!C27)","v":"0"}]
[null,25,{"$f":"'Puan İzleme Aracı'!C28&COUNTIF('Puan İzleme Aracı'!$C$4:C28,'Puan İzleme Aracı'!C28)","v":"0"}]
[null,26,{"$f":"'Puan İzleme Aracı'!C29&COUNTIF('Puan İzleme Aracı'!$C$4:C29,'Puan İzleme Aracı'!C29)","v":"0"}]
[null,27,{"$f":"'Puan İzleme Aracı'!C30&COUNTIF('Puan İzleme Aracı'!$C$4:C30,'Puan İzleme Aracı'!C30)","v":"0"}]
[null,28,{"$f":"'Puan İzleme Aracı'!C31&COUNTIF('Puan İzleme Aracı'!$C$4:C31,'Puan İzleme Aracı'!C31)","v":"0"}]
[null,29,{"$f":"'Puan İzleme Aracı'!C32&COUNTIF('Puan İzleme Aracı'!$C$4:C32,'Puan İzleme Aracı'!C32)","v":"0"}]
[null,30,{"$f":"'Puan İzleme Aracı'!C33&COUNTIF('Puan İzleme Aracı'!$C$4:C33,'Puan İzleme Aracı'!C33)","v":"0"}]
[null,31,{"$f":"'Puan İzleme Aracı'!C34&COUNTIF('Puan İzleme Aracı'!$C$4:C34,'Puan İzleme Aracı'!C34)","v":"0"}]
[null,32,{"$f":"'Puan İzleme Aracı'!C35&COUNTIF('Puan İzleme Aracı'!$C$4:C35,'Puan İzleme Aracı'!C35)","v":"0"}]
[null,33,{"$f":"'Puan İzleme Aracı'!C36&COUNTIF('Puan İzleme Aracı'!$C$4:C36,'Puan İzleme Aracı'!C36)","v":"0"}]
[null,34,{"$f":"'Puan İzleme Aracı'!C37&COUNTIF('Puan İzleme Aracı'!$C$4:C37,'Puan İzleme Aracı'!C37)","v":"0"}]
[null,35,{"$f":"'Puan İzleme Aracı'!C38&COUNTIF('Puan İzleme Aracı'!$C$4:C38,'Puan İzleme Aracı'!C38)","v":"0"}]
[null,36,{"$f":"'Puan İzleme Aracı'!C39&COUNTIF('Puan İzleme Aracı'!$C$4:C39,'Puan İzleme Aracı'!C39)","v":"0"}]
[null,37,{"$f":"'Puan İzleme Aracı'!C40&COUNTIF('Puan İzleme Aracı'!$C$4:C40,'Puan İzleme Aracı'!C40)","v":"0"}]
[null,38,{"$f":"'Puan İzleme Aracı'!C41&COUNTIF('Puan İzleme Aracı'!$C$4:C41,'Puan İzleme Aracı'!C41)","v":"0"}]
[null,39,{"$f":"'Puan İzleme Aracı'!C42&COUNTIF('Puan İzleme Aracı'!$C$4:C42,'Puan İzleme Aracı'!C42)","v":"0"}]
[null,40,{"$f":"'Puan İzleme Aracı'!C43&COUNTIF('Puan İzleme Aracı'!$C$4:C43,'Puan İzleme Aracı'!C43)","v":"0"}]
[null,41,{"$f":"'Puan İzleme Aracı'!C44&COUNTIF('Puan İzleme Aracı'!$C$4:C44,'Puan İzleme Aracı'!C44)","v":"0"}]
[null,42,{"$f":"'Puan İzleme Aracı'!C45&COUNTIF('Puan İzleme Aracı'!$C$4:C45,'Puan İzleme Aracı'!C45)","v":"0"}]
[null,43,{"$f":"'Puan İzleme Aracı'!C46&COUNTIF('Puan İzleme Aracı'!$C$4:C46,'Puan İzleme Aracı'!C46)","v":"0"}]
[null,44,{"$f":"'Puan İzleme Aracı'!C47&COUNTIF('Puan İzleme Aracı'!$C$4:C47,'Puan İzleme Aracı'!C47)","v":"0"}]
[null,45,{"$f":"'Puan İzleme Aracı'!C48&COUNTIF('Puan İzleme Aracı'!$C$4:C48,'Puan İzleme Aracı'!C48)","v":"0"}]
[null,46,{"$f":"'Puan İzleme Aracı'!C49&COUNTIF('Puan İzleme Aracı'!$C$4:C49,'Puan İzleme Aracı'!C49)","v":"0"}]
[null,47,{"$f":"'Puan İzleme Aracı'!C50&COUNTIF('Puan İzleme Aracı'!$C$4:C50,'Puan İzleme Aracı'!C50)","v":"0"}]
[null,48,{"$f":"'Puan İzleme Aracı'!C51&COUNTIF('Puan İzleme Aracı'!$C$4:C51,'Puan İzleme Aracı'!C51)","v":"0"}]
[null,49,{"$f":"'Puan İzleme Aracı'!C52&COUNTIF('Puan İzleme Aracı'!$C$4:C52,'Puan İzleme Aracı'!C52)","v":"0"}]
[null,50,{"$f":"'Puan İzleme Aracı'!C53&COUNTIF('Puan İzleme Aracı'!$C$4:C53,'Puan İzleme Aracı'!C53)","v":"0"}]
[null,51,{"$f":"'Puan İzleme Aracı'!C54&COUNTIF('Puan İzleme Aracı'!$C$4:C54,'Puan İzleme Aracı'!C54)","v":"0"}]
[null,52,{"$f":"'Puan İzleme Aracı'!C55&COUNTIF('Puan İzleme Aracı'!$C$4:C55,'Puan İzleme Aracı'!C55)","v":"0"}]
[null,53,{"$f":"'Puan İzleme Aracı'!C56&COUNTIF('Puan İzleme Aracı'!$C$4:C56,'Puan İzleme Aracı'!C56)","v":"0"}]
[null,54,{"$f":"'Puan İzleme Aracı'!C57&COUNTIF('Puan İzleme Aracı'!$C$4:C57,'Puan İzleme Aracı'!C57)","v":"0"}]
[null,55,{"$f":"'Puan İzleme Aracı'!C58&COUNTIF('Puan İzleme Aracı'!$C$4:C58,'Puan İzleme Aracı'!C58)","v":"0"}]
[null,56,{"$f":"'Puan İzleme Aracı'!C59&COUNTIF('Puan İzleme Aracı'!$C$4:C59,'Puan İzleme Aracı'!C59)","v":"0"}]
[null,57,{"$f":"'Puan İzleme Aracı'!C60&COUNTIF('Puan İzleme Aracı'!$C$4:C60,'Puan İzleme Aracı'!C60)","v":"0"}]
[null,58,{"$f":"'Puan İzleme Aracı'!C61&COUNTIF('Puan İzleme Aracı'!$C$4:C61,'Puan İzleme Aracı'!C61)","v":"0"}]
[null,59,{"$f":"'Puan İzleme Aracı'!C62&COUNTIF('Puan İzleme Aracı'!$C$4:C62,'Puan İzleme Aracı'!C62)","v":"0"}]
[null,60,{"$f":"'Puan İzleme Aracı'!C63&COUNTIF('Puan İzleme Aracı'!$C$4:C63,'Puan İzleme Aracı'!C63)","v":"0"}]
[null,61,{"$f":"'Puan İzleme Aracı'!C64&COUNTIF('Puan İzleme Aracı'!$C$4:C64,'Puan İzleme Aracı'!C64)","v":"0"}]
[null,62,{"$f":"'Puan İzleme Aracı'!C65&COUNTIF('Puan İzleme Aracı'!$C$4:C65,'Puan İzleme Aracı'!C65)","v":"0"}]
[null,63,{"$f":"'Puan İzleme Aracı'!C66&COUNTIF('Puan İzleme Aracı'!$C$4:C66,'Puan İzleme Aracı'!C66)","v":"0"}]
[null,64,{"$f":"'Puan İzleme Aracı'!C67&COUNTIF('Puan İzleme Aracı'!$C$4:C67,'Puan İzleme Aracı'!C67)","v":"0"}]
[null,65,{"$f":"'Puan İzleme Aracı'!C68&COUNTIF('Puan İzleme Aracı'!$C$4:C68,'Puan İzleme Aracı'!C68)","v":"0"}]
[null,66,{"$f":"'Puan İzleme Aracı'!C69&COUNTIF('Puan İzleme Aracı'!$C$4:C69,'Puan İzleme Aracı'!C69)","v":"0"}]
[null,67,{"$f":"'Puan İzleme Aracı'!C70&COUNTIF('Puan İzleme Aracı'!$C$4:C70,'Puan İzleme Aracı'!C70)","v":"0"}]
[null,68,{"$f":"'Puan İzleme Aracı'!C71&COUNTIF('Puan İzleme Aracı'!$C$4:C71,'Puan İzleme Aracı'!C71)","v":"0"}]
[null,69,{"$f":"'Puan İzleme Aracı'!C72&COUNTIF('Puan İzleme Aracı'!$C$4:C72,'Puan İzleme Aracı'!C72)","v":"0"}]
[null,70,{"$f":"'Puan İzleme Aracı'!C73&COUNTIF('Puan İzleme Aracı'!$C$4:C73,'Puan İzleme Aracı'!C73)","v":"0"}]
[null,71,{"$f":"'Puan İzleme Aracı'!C74&COUNTIF('Puan İzleme Aracı'!$C$4:C74,'Puan İzleme Aracı'!C74)","v":"0"}]
[null,72,{"$f":"'Puan İzleme Aracı'!C75&COUNTIF('Puan İzleme Aracı'!$C$4:C75,'Puan İzleme Aracı'!C75)","v":"0"}]
[null,73,{"$f":"'Puan İzleme Aracı'!C76&COUNTIF('Puan İzleme Aracı'!$C$4:C76,'Puan İzleme Aracı'!C76)","v":"0"}]
[null,74,{"$f":"'Puan İzleme Aracı'!C77&COUNTIF('Puan İzleme Aracı'!$C$4:C77,'Puan İzleme Aracı'!C77)","v":"0"}]
[null,75,{"$f":"'Puan İzleme Aracı'!C78&COUNTIF('Puan İzleme Aracı'!$C$4:C78,'Puan İzleme Aracı'!C78)","v":"0"}]
[null,76,{"$f":"'Puan İzleme Aracı'!C79&COUNTIF('Puan İzleme Aracı'!$C$4:C79,'Puan İzleme Aracı'!C79)","v":"0"}]
[null,77,{"$f":"'Puan İzleme Aracı'!C80&COUNTIF('Puan İzleme Aracı'!$C$4:C80,'Puan İzleme Aracı'!C80)","v":"0"}]
[null,78,{"$f":"'Puan İzleme Aracı'!C81&COUNTIF('Puan İzleme Aracı'!$C$4:C81,'Puan İzleme Aracı'!C81)","v":"0"}]
[null,79,{"$f":"'Puan İzleme Aracı'!C82&COUNTIF('Puan İzleme Aracı'!$C$4:C82,'Puan İzleme Aracı'!C82)","v":"0"}]
[null,80,{"$f":"'Puan İzleme Aracı'!C83&COUNTIF('Puan İzleme Aracı'!$C$4:C83,'Puan İzleme Aracı'!C83)","v":"0"}]
[null,81,{"$f":"'Puan İzleme Aracı'!C84&COUNTIF('Puan İzleme Aracı'!$C$4:C84,'Puan İzleme Aracı'!C84)","v":"0"}]
[null,82,{"$f":"'Puan İzleme Aracı'!C85&COUNTIF('Puan İzleme Aracı'!$C$4:C85,'Puan İzleme Aracı'!C85)","v":"0"}]
[null,83,{"$f":"'Puan İzleme Aracı'!C86&COUNTIF('Puan İzleme Aracı'!$C$4:C86,'Puan İzleme Aracı'!C86)","v":"0"}]
[null,84,{"$f":"'Puan İzleme Aracı'!C87&COUNTIF('Puan İzleme Aracı'!$C$4:C87,'Puan İzleme Aracı'!C87)","v":"0"}]
[null,85,{"$f":"'Puan İzleme Aracı'!C88&COUNTIF('Puan İzleme Aracı'!$C$4:C88,'Puan İzleme Aracı'!C88)","v":"0"}]
[null,86,{"$f":"'Puan İzleme Aracı'!C89&COUNTIF('Puan İzleme Aracı'!$C$4:C89,'Puan İzleme Aracı'!C89)","v":"0"}]
[null,87,{"$f":"'Puan İzleme Aracı'!C90&COUNTIF('Puan İzleme Aracı'!$C$4:C90,'Puan İzleme Aracı'!C90)","v":"0"}]
[null,88,{"$f":"'Puan İzleme Aracı'!C91&COUNTIF('Puan İzleme Aracı'!$C$4:C91,'Puan İzleme Aracı'!C91)","v":"0"}]
[null,89,{"$f":"'Puan İzleme Aracı'!C92&COUNTIF('Puan İzleme Aracı'!$C$4:C92,'Puan İzleme Aracı'!C92)","v":"0"}]
[null,90,{"$f":"'Puan İzleme Aracı'!C93&COUNTIF('Puan İzleme Aracı'!$C$4:C93,'Puan İzleme Aracı'!C93)","v":"0"}]
[null,91,{"$f":"'Puan İzleme Aracı'!C94&COUNTIF('Puan İzleme Aracı'!$C$4:C94,'Puan İzleme Aracı'!C94)","v":"0"}]
[null,92,{"$f":"'Puan İzleme Aracı'!C95&COUNTIF('Puan İzleme Aracı'!$C$4:C95,'Puan İzleme Aracı'!C95)","v":"0"}]
[null,93,{"$f":"'Puan İzleme Aracı'!C96&COUNTIF('Puan İzleme Aracı'!$C$4:C96,'Puan İzleme Aracı'!C96)","v":"0"}]
[null,94,{"$f":"'Puan İzleme Aracı'!C97&COUNTIF('Puan İzleme Aracı'!$C$4:C97,'Puan İzleme Aracı'!C97)","v":"0"}]
[null,95,{"$f":"'Puan İzleme Aracı'!C98&COUNTIF('Puan İzleme Aracı'!$C$4:C98,'Puan İzleme Aracı'!C98)","v":"0"}]
[null,96,{"$f":"'Puan İzleme Aracı'!C99&COUNTIF('Puan İzleme Aracı'!$C$4:C99,'Puan İzleme Aracı'!C99)","v":"0"}]
[null,97,{"$f":"'Puan İzleme Aracı'!C100&COUNTIF('Puan İzleme Aracı'!$C$4:C100,'Puan İzleme Aracı'!C100)","v":"0"}]
[null,98,{"$f":"'Puan İzleme Aracı'!C101&COUNTIF('Puan İzleme Aracı'!$C$4:C101,'Puan İzleme Aracı'!C101)","v":"0"}]
[null,99,{"$f":"'Puan İzleme Aracı'!C102&COUNTIF('Puan İzleme Aracı'!$C$4:C102,'Puan İzleme Aracı'!C102)","v":"0"}]
[null,100,{"$f":"'Puan İzleme Aracı'!C103&COUNTIF('Puan İzleme Aracı'!$C$4:C103,'Puan İzleme Aracı'!C103)","v":"0"}]
[null,101,{"$f":"'Puan İzleme Aracı'!C104&COUNTIF('Puan İzleme Aracı'!$C$4:C104,'Puan İzleme Aracı'!C104)","v":"0"}]
[null,102,{"$f":"'Puan İzleme Aracı'!C105&COUNTIF('Puan İzleme Aracı'!$C$4:C105,'Puan İzleme Aracı'!C105)","v":"0"}]
[null,103,{"$f":"'Puan İzleme Aracı'!C106&COUNTIF('Puan İzleme Aracı'!$C$4:C106,'Puan İzleme Aracı'!C106)","v":"0"}]
[null,104,{"$f":"'Puan İzleme Aracı'!C107&COUNTIF('Puan İzleme Aracı'!$C$4:C107,'Puan İzleme Aracı'!C107)","v":"0"}]
[null,105,{"$f":"'Puan İzleme Aracı'!C108&COUNTIF('Puan İzleme Aracı'!$C$4:C108,'Puan İzleme Aracı'!C108)","v":"0"}]
[null,106,{"$f":"'Puan İzleme Aracı'!C109&COUNTIF('Puan İzleme Aracı'!$C$4:C109,'Puan İzleme Aracı'!C109)","v":"0"}]
[null,107,{"$f":"'Puan İzleme Aracı'!C110&COUNTIF('Puan İzleme Aracı'!$C$4:C110,'Puan İzleme Aracı'!C110)","v":"0"}]
[null,108,{"$f":"'Puan İzleme Aracı'!C111&COUNTIF('Puan İzleme Aracı'!$C$4:C111,'Puan İzleme Aracı'!C111)","v":"0"}]
[null,109,{"$f":"'Puan İzleme Aracı'!C112&COUNTIF('Puan İzleme Aracı'!$C$4:C112,'Puan İzleme Aracı'!C112)","v":"0"}]
[null,110,{"$f":"'Puan İzleme Aracı'!C113&COUNTIF('Puan İzleme Aracı'!$C$4:C113,'Puan İzleme Aracı'!C113)","v":"0"}]
[null,111,{"$f":"'Puan İzleme Aracı'!C114&COUNTIF('Puan İzleme Aracı'!$C$4:C114,'Puan İzleme Aracı'!C114)","v":"0"}]
[null,112,{"$f":"'Puan İzleme Aracı'!C115&COUNTIF('Puan İzleme Aracı'!$C$4:C115,'Puan İzleme Aracı'!C115)","v":"0"}]
[null,113,{"$f":"'Puan İzleme Aracı'!C116&COUNTIF('Puan İzleme Aracı'!$C$4:C116,'Puan İzleme Aracı'!C116)","v":"0"}]
[null,114,{"$f":"'Puan İzleme Aracı'!C117&COUNTIF('Puan İzleme Aracı'!$C$4:C117,'Puan İzleme Aracı'!C117)","v":"0"}]
[null,115,{"$f":"'Puan İzleme Aracı'!C118&COUNTIF('Puan İzleme Aracı'!$C$4:C118,'Puan İzleme Aracı'!C118)","v":"0"}]
[null,116,{"$f":"'Puan İzleme Aracı'!C119&COUNTIF('Puan İzleme Aracı'!$C$4:C119,'Puan İzleme Aracı'!C119)","v":"0"}]
[null,117,{"$f":"'Puan İzleme Aracı'!C120&COUNTIF('Puan İzleme Aracı'!$C$4:C120,'Puan İzleme Aracı'!C120)","v":"0"}]
[null,118,{"$f":"'Puan İzleme Aracı'!C121&COUNTIF('Puan İzleme Aracı'!$C$4:C121,'Puan İzleme Aracı'!C121)","v":"0"}]
[null,119,{"$f":"'Puan İzleme Aracı'!C122&COUNTIF('Puan İzleme Aracı'!$C$4:C122,'Puan İzleme Aracı'!C122)","v":"0"}]
[null,120,{"$f":"'Puan İzleme Aracı'!C123&COUNTIF('Puan İzleme Aracı'!$C$4:C123,'Puan İzleme Aracı'!C123)","v":"0"}]
[null,121,{"$f":"'Puan İzleme Aracı'!C124&COUNTIF('Puan İzleme Aracı'!$C$4:C124,'Puan İzleme Aracı'!C124)","v":"0"}]
[null,122,{"$f":"'Puan İzleme Aracı'!C125&COUNTIF('Puan İzleme Aracı'!$C$4:C125,'Puan İzleme Aracı'!C125)","v":"0"}]
[null,123,{"$f":"'Puan İzleme Aracı'!C126&COUNTIF('Puan İzleme Aracı'!$C$4:C126,'Puan İzleme Aracı'!C126)","v":"0"}]
[null,124,{"$f":"'Puan İzleme Aracı'!C127&COUNTIF('Puan İzleme Aracı'!$C$4:C127,'Puan İzleme Aracı'!C127)","v":"0"}]
[null,125,{"$f":"'Puan İzleme Aracı'!C128&COUNTIF('Puan İzleme Aracı'!$C$4:C128,'Puan İzleme Aracı'!C128)","v":"0"}]
[null,126,{"$f":"'Puan İzleme Aracı'!C129&COUNTIF('Puan İzleme Aracı'!$C$4:C129,'Puan İzleme Aracı'!C129)","v":"0"}]
[null,127,{"$f":"'Puan İzleme Aracı'!C130&COUNTIF('Puan İzleme Aracı'!$C$4:C130,'Puan İzleme Aracı'!C130)","v":"0"}]
[null,128,{"$f":"'Puan İzleme Aracı'!C131&COUNTIF('Puan İzleme Aracı'!$C$4:C131,'Puan İzleme Aracı'!C131)","v":"0"}]
[null,129,{"$f":"'Puan İzleme Aracı'!C132&COUNTIF('Puan İzleme Aracı'!$C$4:C132,'Puan İzleme Aracı'!C132)","v":"0"}]
[null,130,{"$f":"'Puan İzleme Aracı'!C133&COUNTIF('Puan İzleme Aracı'!$C$4:C133,'Puan İzleme Aracı'!C133)","v":"0"}]
[null,131,{"$f":"'Puan İzleme Aracı'!C134&COUNTIF('Puan İzleme Aracı'!$C$4:C134,'Puan İzleme Aracı'!C134)","v":"0"}]
[null,132,{"$f":"'Puan İzleme Aracı'!C135&COUNTIF('Puan İzleme Aracı'!$C$4:C135,'Puan İzleme Aracı'!C135)","v":"0"}]
[null,133,{"$f":"'Puan İzleme Aracı'!C136&COUNTIF('Puan İzleme Aracı'!$C$4:C136,'Puan İzleme Aracı'!C136)","v":"0"}]
[null,134,{"$f":"'Puan İzleme Aracı'!C137&COUNTIF('Puan İzleme Aracı'!$C$4:C137,'Puan İzleme Aracı'!C137)","v":"0"}]
[null,135,{"$f":"'Puan İzleme Aracı'!C138&COUNTIF('Puan İzleme Aracı'!$C$4:C138,'Puan İzleme Aracı'!C138)","v":"0"}]
[null,136,{"$f":"'Puan İzleme Aracı'!C139&COUNTIF('Puan İzleme Aracı'!$C$4:C139,'Puan İzleme Aracı'!C139)","v":"0"}]
[null,137,{"$f":"'Puan İzleme Aracı'!C140&COUNTIF('Puan İzleme Aracı'!$C$4:C140,'Puan İzleme Aracı'!C140)","v":"0"}]
[null,138,{"$f":"'Puan İzleme Aracı'!C141&COUNTIF('Puan İzleme Aracı'!$C$4:C141,'Puan İzleme Aracı'!C141)","v":"0"}]
[null,139,{"$f":"'Puan İzleme Aracı'!C142&COUNTIF('Puan İzleme Aracı'!$C$4:C142,'Puan İzleme Aracı'!C142)","v":"0"}]
[null,140,{"$f":"'Puan İzleme Aracı'!C143&COUNTIF('Puan İzleme Aracı'!$C$4:C143,'Puan İzleme Aracı'!C143)","v":"0"}]
[null,141,{"$f":"'Puan İzleme Aracı'!C144&COUNTIF('Puan İzleme Aracı'!$C$4:C144,'Puan İzleme Aracı'!C144)","v":"0"}]
[null,142,{"$f":"'Puan İzleme Aracı'!C145&COUNTIF('Puan İzleme Aracı'!$C$4:C145,'Puan İzleme Aracı'!C145)","v":"0"}]
[null,143,{"$f":"'Puan İzleme Aracı'!C146&COUNTIF('Puan İzleme Aracı'!$C$4:C146,'Puan İzleme Aracı'!C146)","v":"0"}]
[null,144,{"$f":"'Puan İzleme Aracı'!C147&COUNTIF('Puan İzleme Aracı'!$C$4:C147,'Puan İzleme Aracı'!C147)","v":"0"}]
[null,145,{"$f":"'Puan İzleme Aracı'!C148&COUNTIF('Puan İzleme Aracı'!$C$4:C148,'Puan İzleme Aracı'!C148)","v":"0"}]
[null,146,{"$f":"'Puan İzleme Aracı'!C149&COUNTIF('Puan İzleme Aracı'!$C$4:C149,'Puan İzleme Aracı'!C149)","v":"0"}]
[null,147,{"$f":"'Puan İzleme Aracı'!C150&COUNTIF('Puan İzleme Aracı'!$C$4:C150,'Puan İzleme Aracı'!C150)","v":"0"}]
[null,148,{"$f":"'Puan İzleme Aracı'!C151&COUNTIF('Puan İzleme Aracı'!$C$4:C151,'Puan İzleme Aracı'!C151)","v":"0"}]
[null,149,{"$f":"'Puan İzleme Aracı'!C152&COUNTIF('Puan İzleme Aracı'!$C$4:C152,'Puan İzleme Aracı'!C152)","v":"0"}]
[null,150,{"$f":"'Puan İzleme Aracı'!C153&COUNTIF('Puan İzleme Aracı'!$C$4:C153,'Puan İzleme Aracı'!C153)","v":"0"}]
[null,151,{"$f":"'Puan İzleme Aracı'!C154&COUNTIF('Puan İzleme Aracı'!$C$4:C154,'Puan İzleme Aracı'!C154)","v":"0"}]
[null,152,{"$f":"'Puan İzleme Aracı'!C155&COUNTIF('Puan İzleme Aracı'!$C$4:C155,'Puan İzleme Aracı'!C155)","v":"0"}]
[null,153,{"$f":"'Puan İzleme Aracı'!C156&COUNTIF('Puan İzleme Aracı'!$C$4:C156,'Puan İzleme Aracı'!C156)","v":"0"}]
[null,154,{"$f":"'Puan İzleme Aracı'!C157&COUNTIF('Puan İzleme Aracı'!$C$4:C157,'Puan İzleme Aracı'!C157)","v":"0"}]
[null,155,{"$f":"'Puan İzleme Aracı'!C158&COUNTIF('Puan İzleme Aracı'!$C$4:C158,'Puan İzleme Aracı'!C158)","v":"0"}]
[null,156,{"$f":"'Puan İzleme Aracı'!C159&COUNTIF('Puan İzleme Aracı'!$C$4:C159,'Puan İzleme Aracı'!C159)","v":"0"}]
[null,157,{"$f":"'Puan İzleme Aracı'!C160&COUNTIF('Puan İzleme Aracı'!$C$4:C160,'Puan İzleme Aracı'!C160)","v":"0"}]
[null,158,{"$f":"'Puan İzleme Aracı'!C161&COUNTIF('Puan İzleme Aracı'!$C$4:C161,'Puan İzleme Aracı'!C161)","v":"0"}]
[null,159,{"$f":"'Puan İzleme Aracı'!C162&COUNTIF('Puan İzleme Aracı'!$C$4:C162,'Puan İzleme Aracı'!C162)","v":"0"}]
[null,160,{"$f":"'Puan İzleme Aracı'!C163&COUNTIF('Puan İzleme Aracı'!$C$4:C163,'Puan İzleme Aracı'!C163)","v":"0"}]
[null,161,{"$f":"'Puan İzleme Aracı'!C164&COUNTIF('Puan İzleme Aracı'!$C$4:C164,'Puan İzleme Aracı'!C164)","v":"0"}]
[null,162,{"$f":"'Puan İzleme Aracı'!C165&COUNTIF('Puan İzleme Aracı'!$C$4:C165,'Puan İzleme Aracı'!C165)","v":"0"}]
[null,163,{"$f":"'Puan İzleme Aracı'!C166&COUNTIF('Puan İzleme Aracı'!$C$4:C166,'Puan İzleme Aracı'!C166)","v":"0"}]
[null,164,{"$f":"'Puan İzleme Aracı'!C167&COUNTIF('Puan İzleme Aracı'!$C$4:C167,'Puan İzleme Aracı'!C167)","v":"0"}]
[null,165,{"$f":"'Puan İzleme Aracı'!C168&COUNTIF('Puan İzleme Aracı'!$C$4:C168,'Puan İzleme Aracı'!C168)","v":"0"}]
[null,166,{"$f":"'Puan İzleme Aracı'!C169&COUNTIF('Puan İzleme Aracı'!$C$4:C169,'Puan İzleme Aracı'!C169)","v":"0"}]
[null,167,{"$f":"'Puan İzleme Aracı'!C170&COUNTIF('Puan İzleme Aracı'!$C$4:C170,'Puan İzleme Aracı'!C170)","v":"0"}]
[null,168,{"$f":"'Puan İzleme Aracı'!C171&COUNTIF('Puan İzleme Aracı'!$C$4:C171,'Puan İzleme Aracı'!C171)","v":"0"}]
[null,169,{"$f":"'Puan İzleme Aracı'!C172&COUNTIF('Puan İzleme Aracı'!$C$4:C172,'Puan İzleme Aracı'!C172)","v":"0"}]
[null,170,{"$f":"'Puan İzleme Aracı'!C173&COUNTIF('Puan İzleme Aracı'!$C$4:C173,'Puan İzleme Aracı'!C173)","v":"0"}]
[null,171,{"$f":"'Puan İzleme Aracı'!C174&COUNTIF('Puan İzleme Aracı'!$C$4:C174,'Puan İzleme Aracı'!C174)","v":"0"}]
[null,172,{"$f":"'Puan İzleme Aracı'!C175&COUNTIF('Puan İzleme Aracı'!$C$4:C175,'Puan İzleme Aracı'!C175)","v":"0"}]
[null,173,{"$f":"'Puan İzleme Aracı'!C176&COUNTIF('Puan İzleme Aracı'!$C$4:C176,'Puan İzleme Aracı'!C176)","v":"0"}]
[null,174,{"$f":"'Puan İzleme Aracı'!C177&COUNTIF('Puan İzleme Aracı'!$C$4:C177,'Puan İzleme Aracı'!C177)","v":"0"}]
[null,175,{"$f":"'Puan İzleme Aracı'!C178&COUNTIF('Puan İzleme Aracı'!$C$4:C178,'Puan İzleme Aracı'!C178)","v":"0"}]
[null,176,{"$f":"'Puan İzleme Aracı'!C179&COUNTIF('Puan İzleme Aracı'!$C$4:C179,'Puan İzleme Aracı'!C179)","v":"0"}]
[null,177,{"$f":"'Puan İzleme Aracı'!C180&COUNTIF('Puan İzleme Aracı'!$C$4:C180,'Puan İzleme Aracı'!C180)","v":"0"}]
[null,178,{"$f":"'Puan İzleme Aracı'!C181&COUNTIF('Puan İzleme Aracı'!$C$4:C181,'Puan İzleme Aracı'!C181)","v":"0"}]
[null,179,{"$f":"'Puan İzleme Aracı'!C182&COUNTIF('Puan İzleme Aracı'!$C$4:C182,'Puan İzleme Aracı'!C182)","v":"0"}]
[null,180,{"$f":"'Puan İzleme Aracı'!C183&COUNTIF('Puan İzleme Aracı'!$C$4:C183,'Puan İzleme Aracı'!C183)","v":"0"}]
[null,181,{"$f":"'Puan İzleme Aracı'!C184&COUNTIF('Puan İzleme Aracı'!$C$4:C184,'Puan İzleme Aracı'!C184)","v":"0"}]
[null,182,{"$f":"'Puan İzleme Aracı'!C185&COUNTIF('Puan İzleme Aracı'!$C$4:C185,'Puan İzleme Aracı'!C185)","v":"0"}]
[null,183,{"$f":"'Puan İzleme Aracı'!C186&COUNTIF('Puan İzleme Aracı'!$C$4:C186,'Puan İzleme Aracı'!C186)","v":"0"}]
[null,184,{"$f":"'Puan İzleme Aracı'!C187&COUNTIF('Puan İzleme Aracı'!$C$4:C187,'Puan İzleme Aracı'!C187)","v":"0"}]
[null,185,{"$f":"'Puan İzleme Aracı'!C188&COUNTIF('Puan İzleme Aracı'!$C$4:C188,'Puan İzleme Aracı'!C188)","v":"0"}]
[null,186,{"$f":"'Puan İzleme Aracı'!C189&COUNTIF('Puan İzleme Aracı'!$C$4:C189,'Puan İzleme Aracı'!C189)","v":"0"}]
[null,187,{"$f":"'Puan İzleme Aracı'!C190&COUNTIF('Puan İzleme Aracı'!$C$4:C190,'Puan İzleme Aracı'!C190)","v":"0"}]
[null,188,{"$f":"'Puan İzleme Aracı'!C191&COUNTIF('Puan İzleme Aracı'!$C$4:C191,'Puan İzleme Aracı'!C191)","v":"0"}]
[null,189,{"$f":"'Puan İzleme Aracı'!C192&COUNTIF('Puan İzleme Aracı'!$C$4:C192,'Puan İzleme Aracı'!C192)","v":"0"}]
[null,190,{"$f":"'Puan İzleme Aracı'!C193&COUNTIF('Puan İzleme Aracı'!$C$4:C193,'Puan İzleme Aracı'!C193)","v":"0"}]
[null,191,{"$f":"'Puan İzleme Aracı'!C194&COUNTIF('Puan İzleme Aracı'!$C$4:C194,'Puan İzleme Aracı'!C194)","v":"0"}]
[null,192,{"$f":"'Puan İzleme Aracı'!C195&COUNTIF('Puan İzleme Aracı'!$C$4:C195,'Puan İzleme Aracı'!C195)","v":"0"}]
[null,193,{"$f":"'Puan İzleme Aracı'!C196&COUNTIF('Puan İzleme Aracı'!$C$4:C196,'Puan İzleme Aracı'!C196)","v":"0"}]
[null,194,{"$f":"'Puan İzleme Aracı'!C197&COUNTIF('Puan İzleme Aracı'!$C$4:C197,'Puan İzleme Aracı'!C197)","v":"0"}]
[null,195,{"$f":"'Puan İzleme Aracı'!C198&COUNTIF('Puan İzleme Aracı'!$C$4:C198,'Puan İzleme Aracı'!C198)","v":"0"}]
[null,196,{"$f":"'Puan İzleme Aracı'!C199&COUNTIF('Puan İzleme Aracı'!$C$4:C199,'Puan İzleme Aracı'!C199)","v":"0"}]
[null,197,{"$f":"'Puan İzleme Aracı'!C200&COUNTIF('Puan İzleme Aracı'!$C$4:C200,'Puan İzleme Aracı'!C200)","v":"0"}]
[null,198,{"$f":"'Puan İzleme Aracı'!C201&COUNTIF('Puan İzleme Aracı'!$C$4:C201,'Puan İzleme Aracı'!C201)","v":"0"}]
[null,199,{"$f":"'Puan İzleme Aracı'!C202&COUNTIF('Puan İzleme Aracı'!$C$4:C202,'Puan İzleme Aracı'!C202)","v":"0"}]
[null,200,{"$f":"'Puan İzleme Aracı'!C203&COUNTIF('Puan İzleme Aracı'!$C$4:C203,'Puan İzleme Aracı'!C203)","v":"0"}]
[null,201,{"$f":"'Puan İzleme Aracı'!C204&COUNTIF('Puan İzleme Aracı'!$C$4:C204,'Puan İzleme Aracı'!C204)","v":"0"}]
[null,202,{"$f":"'Puan İzleme Aracı'!C205&COUNTIF('Puan İzleme Aracı'!$C$4:C205,'Puan İzleme Aracı'!C205)","v":"0"}]
[null,203,{"$f":"'Puan İzleme Aracı'!C206&COUNTIF('Puan İzleme Aracı'!$C$4:C206,'Puan İzleme Aracı'!C206)","v":"0"}]
[null,204,{"$f":"'Puan İzleme Aracı'!C207&COUNTIF('Puan İzleme Aracı'!$C$4:C207,'Puan İzleme Aracı'!C207)","v":"0"}]
[null,205,{"$f":"'Puan İzleme Aracı'!C208&COUNTIF('Puan İzleme Aracı'!$C$4:C208,'Puan İzleme Aracı'!C208)","v":"0"}]
[null,206,{"$f":"'Puan İzleme Aracı'!C209&COUNTIF('Puan İzleme Aracı'!$C$4:C209,'Puan İzleme Aracı'!C209)","v":"0"}]
[null,207,{"$f":"'Puan İzleme Aracı'!C210&COUNTIF('Puan İzleme Aracı'!$C$4:C210,'Puan İzleme Aracı'!C210)","v":"0"}]
[null,208,{"$f":"'Puan İzleme Aracı'!C211&COUNTIF('Puan İzleme Aracı'!$C$4:C211,'Puan İzleme Aracı'!C211)","v":"0"}]
[null,209,{"$f":"'Puan İzleme Aracı'!C212&COUNTIF('Puan İzleme Aracı'!$C$4:C212,'Puan İzleme Aracı'!C212)","v":"0"}]
[null,210,{"$f":"'Puan İzleme Aracı'!C213&COUNTIF('Puan İzleme Aracı'!$C$4:C213,'Puan İzleme Aracı'!C213)","v":"0"}]
[null,211,{"$f":"'Puan İzleme Aracı'!C214&COUNTIF('Puan İzleme Aracı'!$C$4:C214,'Puan İzleme Aracı'!C214)","v":"0"}]
[null,212,{"$f":"'Puan İzleme Aracı'!C215&COUNTIF('Puan İzleme Aracı'!$C$4:C215,'Puan İzleme Aracı'!C215)","v":"0"}]
[null,213,{"$f":"'Puan İzleme Aracı'!C216&COUNTIF('Puan İzleme Aracı'!$C$4:C216,'Puan İzleme Aracı'!C216)","v":"0"}]
[null,214,{"$f":"'Puan İzleme Aracı'!C217&COUNTIF('Puan İzleme Aracı'!$C$4:C217,'Puan İzleme Aracı'!C217)","v":"0"}]
[null,215,{"$f":"'Puan İzleme Aracı'!C218&COUNTIF('Puan İzleme Aracı'!$C$4:C218,'Puan İzleme Aracı'!C218)","v":"0"}]
[null,216,{"$f":"'Puan İzleme Aracı'!C219&COUNTIF('Puan İzleme Aracı'!$C$4:C219,'Puan İzleme Aracı'!C219)","v":"0"}]
[null,217,{"$f":"'Puan İzleme Aracı'!C220&COUNTIF('Puan İzleme Aracı'!$C$4:C220,'Puan İzleme Aracı'!C220)","v":"0"}]
[null,218,{"$f":"'Puan İzleme Aracı'!C221&COUNTIF('Puan İzleme Aracı'!$C$4:C221,'Puan İzleme Aracı'!C221)","v":"0"}]
[null,219,{"$f":"'Puan İzleme Aracı'!C222&COUNTIF('Puan İzleme Aracı'!$C$4:C222,'Puan İzleme Aracı'!C222)","v":"0"}]
[null,220,{"$f":"'Puan İzleme Aracı'!C223&COUNTIF('Puan İzleme Aracı'!$C$4:C223,'Puan İzleme Aracı'!C223)","v":"0"}]
[null,221,{"$f":"'Puan İzleme Aracı'!C224&COUNTIF('Puan İzleme Aracı'!$C$4:C224,'Puan İzleme Aracı'!C224)","v":"0"}]
[null,222,{"$f":"'Puan İzleme Aracı'!C225&COUNTIF('Puan İzleme Aracı'!$C$4:C225,'Puan İzleme Aracı'!C225)","v":"0"}]
[null,223,{"$f":"'Puan İzleme Aracı'!C226&COUNTIF('Puan İzleme Aracı'!$C$4:C226,'Puan İzleme Aracı'!C226)","v":"0"}]
[null,224,{"$f":"'Puan İzleme Aracı'!C227&COUNTIF('Puan İzleme Aracı'!$C$4:C227,'Puan İzleme Aracı'!C227)","v":"0"}]
[null,225,{"$f":"'Puan İzleme Aracı'!C228&COUNTIF('Puan İzleme Aracı'!$C$4:C228,'Puan İzleme Aracı'!C228)","v":"0"}]
[null,226,{"$f":"'Puan İzleme Aracı'!C229&COUNTIF('Puan İzleme Aracı'!$C$4:C229,'Puan İzleme Aracı'!C229)","v":"0"}]
[null,227,{"$f":"'Puan İzleme Aracı'!C230&COUNTIF('Puan İzleme Aracı'!$C$4:C230,'Puan İzleme Aracı'!C230)","v":"0"}]
[null,228,{"$f":"'Puan İzleme Aracı'!C231&COUNTIF('Puan İzleme Aracı'!$C$4:C231,'Puan İzleme Aracı'!C231)","v":"0"}]
[null,229,{"$f":"'Puan İzleme Aracı'!C232&COUNTIF('Puan İzleme Aracı'!$C$4:C232,'Puan İzleme Aracı'!C232)","v":"0"}]
[null,230,{"$f":"'Puan İzleme Aracı'!C233&COUNTIF('Puan İzleme Aracı'!$C$4:C233,'Puan İzleme Aracı'!C233)","v":"0"}]
[null,231,{"$f":"'Puan İzleme Aracı'!C234&COUNTIF('Puan İzleme Aracı'!$C$4:C234,'Puan İzleme Aracı'!C234)","v":"0"}]
[null,232,{"$f":"'Puan İzleme Aracı'!C235&COUNTIF('Puan İzleme Aracı'!$C$4:C235,'Puan İzleme Aracı'!C235)","v":"0"}]
[null,233,{"$f":"'Puan İzleme Aracı'!C236&COUNTIF('Puan İzleme Aracı'!$C$4:C236,'Puan İzleme Aracı'!C236)","v":"0"}]
[null,234,{"$f":"'Puan İzleme Aracı'!C237&COUNTIF('Puan İzleme Aracı'!$C$4:C237,'Puan İzleme Aracı'!C237)","v":"0"}]
[null,235,{"$f":"'Puan İzleme Aracı'!C238&COUNTIF('Puan İzleme Aracı'!$C$4:C238,'Puan İzleme Aracı'!C238)","v":"0"}]
[null,236,{"$f":"'Puan İzleme Aracı'!C239&COUNTIF('Puan İzleme Aracı'!$C$4:C239,'Puan İzleme Aracı'!C239)","v":"0"}]
[null,237,{"$f":"'Puan İzleme Aracı'!C240&COUNTIF('Puan İzleme Aracı'!$C$4:C240,'Puan İzleme Aracı'!C240)","v":"0"}]
[null,238,{"$f":"'Puan İzleme Aracı'!C241&COUNTIF('Puan İzleme Aracı'!$C$4:C241,'Puan İzleme Aracı'!C241)","v":"0"}]
[null,239,{"$f":"'Puan İzleme Aracı'!C242&COUNTIF('Puan İzleme Aracı'!$C$4:C242,'Puan İzleme Aracı'!C242)","v":"0"}]
[null,240,{"$f":"'Puan İzleme Aracı'!C243&COUNTIF('Puan İzleme Aracı'!$C$4:C243,'Puan İzleme Aracı'!C243)","v":"0"}]
[null,241,{"$f":"'Puan İzleme Aracı'!C244&COUNTIF('Puan İzleme Aracı'!$C$4:C244,'Puan İzleme Aracı'!C244)","v":"0"}]
[null,242,{"$f":"'Puan İzleme Aracı'!C245&COUNTIF('Puan İzleme Aracı'!$C$4:C245,'Puan İzleme Aracı'!C245)","v":"0"}]
[null,243,{"$f":"'Puan İzleme Aracı'!C246&COUNTIF('Puan İzleme Aracı'!$C$4:C246,'Puan İzleme Aracı'!C246)","v":"0"}]
[null,244,{"$f":"'Puan İzleme Aracı'!C247&COUNTIF('Puan İzleme Aracı'!$C$4:C247,'Puan İzleme Aracı'!C247)","v":"0"}]
[null,245,{"$f":"'Puan İzleme Aracı'!C248&COUNTIF('Puan İzleme Aracı'!$C$4:C248,'Puan İzleme Aracı'!C248)","v":"0"}]
[null,246,{"$f":"'Puan İzleme Aracı'!C249&COUNTIF('Puan İzleme Aracı'!$C$4:C249,'Puan İzleme Aracı'!C249)","v":"0"}]
[null,247,{"$f":"'Puan İzleme Aracı'!C250&COUNTIF('Puan İzleme Aracı'!$C$4:C250,'Puan İzleme Aracı'!C250)","v":"0"}]
[null,248,{"$f":"'Puan İzleme Aracı'!C251&COUNTIF('Puan İzleme Aracı'!$C$4:C251,'Puan İzleme Aracı'!C251)","v":"0"}]
[null,249,{"$f":"'Puan İzleme Aracı'!C252&COUNTIF('Puan İzleme Aracı'!$C$4:C252,'Puan İzleme Aracı'!C252)","v":"0"}]
[null,250,{"$f":"'Puan İzleme Aracı'!C253&COUNTIF('Puan İzleme Aracı'!$C$4:C253,'Puan İzleme Aracı'!C253)","v":"0"}]
[null,251,{"$f":"'Puan İzleme Aracı'!C254&COUNTIF('Puan İzleme Aracı'!$C$4:C254,'Puan İzleme Aracı'!C254)","v":"0"}]
[null,252,{"$f":"'Puan İzleme Aracı'!C255&COUNTIF('Puan İzleme Aracı'!$C$4:C255,'Puan İzleme Aracı'!C255)","v":"0"}]
[null,253,{"$f":"'Puan İzleme Aracı'!C256&COUNTIF('Puan İzleme Aracı'!$C$4:C256,'Puan İzleme Aracı'!C256)","v":"0"}]
[null,254,{"$f":"'Puan İzleme Aracı'!C257&COUNTIF('Puan İzleme Aracı'!$C$4:C257,'Puan İzleme Aracı'!C257)","v":"0"}]
[null,255,{"$f":"'Puan İzleme Aracı'!C258&COUNTIF('Puan İzleme Aracı'!$C$4:C258,'Puan İzleme Aracı'!C258)","v":"0"}]
[null,256,{"$f":"'Puan İzleme Aracı'!C259&COUNTIF('Puan İzleme Aracı'!$C$4:C259,'Puan İzleme Aracı'!C259)","v":"0"}]
[null,257,{"$f":"'Puan İzleme Aracı'!C260&COUNTIF('Puan İzleme Aracı'!$C$4:C260,'Puan İzleme Aracı'!C260)","v":"0"}]
[null,258,{"$f":"'Puan İzleme Aracı'!C261&COUNTIF('Puan İzleme Aracı'!$C$4:C261,'Puan İzleme Aracı'!C261)","v":"0"}]
[null,259,{"$f":"'Puan İzleme Aracı'!C262&COUNTIF('Puan İzleme Aracı'!$C$4:C262,'Puan İzleme Aracı'!C262)","v":"0"}]
[null,260,{"$f":"'Puan İzleme Aracı'!C263&COUNTIF('Puan İzleme Aracı'!$C$4:C263,'Puan İzleme Aracı'!C263)","v":"0"}]
[null,261,{"$f":"'Puan İzleme Aracı'!C264&COUNTIF('Puan İzleme Aracı'!$C$4:C264,'Puan İzleme Aracı'!C264)","v":"0"}]
[null,262,{"$f":"'Puan İzleme Aracı'!C265&COUNTIF('Puan İzleme Aracı'!$C$4:C265,'Puan İzleme Aracı'!C265)","v":"0"}]
[null,263,{"$f":"'Puan İzleme Aracı'!C266&COUNTIF('Puan İzleme Aracı'!$C$4:C266,'Puan İzleme Aracı'!C266)","v":"0"}]
[null,264,{"$f":"'Puan İzleme Aracı'!C267&COUNTIF('Puan İzleme Aracı'!$C$4:C267,'Puan İzleme Aracı'!C267)","v":"0"}]
[null,265,{"$f":"'Puan İzleme Aracı'!C268&COUNTIF('Puan İzleme Aracı'!$C$4:C268,'Puan İzleme Aracı'!C268)","v":"0"}]
[null,266,{"$f":"'Puan İzleme Aracı'!C269&COUNTIF('Puan İzleme Aracı'!$C$4:C269,'Puan İzleme Aracı'!C269)","v":"0"}]
[null,267,{"$f":"'Puan İzleme Aracı'!C270&COUNTIF('Puan İzleme Aracı'!$C$4:C270,'Puan İzleme Aracı'!C270)","v":"0"}]
[null,268,{"$f":"'Puan İzleme Aracı'!C271&COUNTIF('Puan İzleme Aracı'!$C$4:C271,'Puan İzleme Aracı'!C271)","v":"0"}]
[null,269,{"$f":"'Puan İzleme Aracı'!C272&COUNTIF('Puan İzleme Aracı'!$C$4:C272,'Puan İzleme Aracı'!C272)","v":"0"}]
[null,270,{"$f":"'Puan İzleme Aracı'!C273&COUNTIF('Puan İzleme Aracı'!$C$4:C273,'Puan İzleme Aracı'!C273)","v":"0"}]
[null,271,{"$f":"'Puan İzleme Aracı'!C274&COUNTIF('Puan İzleme Aracı'!$C$4:C274,'Puan İzleme Aracı'!C274)","v":"0"}]
[null,272,{"$f":"'Puan İzleme Aracı'!C275&COUNTIF('Puan İzleme Aracı'!$C$4:C275,'Puan İzleme Aracı'!C275)","v":"0"}]
[null,273,{"$f":"'Puan İzleme Aracı'!C276&COUNTIF('Puan İzleme Aracı'!$C$4:C276,'Puan İzleme Aracı'!C276)","v":"0"}]
[null,274,{"$f":"'Puan İzleme Aracı'!C277&COUNTIF('Puan İzleme Aracı'!$C$4:C277,'Puan İzleme Aracı'!C277)","v":"0"}]
[null,275,{"$f":"'Puan İzleme Aracı'!C278&COUNTIF('Puan İzleme Aracı'!$C$4:C278,'Puan İzleme Aracı'!C278)","v":"0"}]
[null,276,{"$f":"'Puan İzleme Aracı'!C279&COUNTIF('Puan İzleme Aracı'!$C$4:C279,'Puan İzleme Aracı'!C279)","v":"0"}]
[null,277,{"$f":"'Puan İzleme Aracı'!C280&COUNTIF('Puan İzleme Aracı'!$C$4:C280,'Puan İzleme Aracı'!C280)","v":"0"}]
[null,278,{"$f":"'Puan İzleme Aracı'!C281&COUNTIF('Puan İzleme Aracı'!$C$4:C281,'Puan İzleme Aracı'!C281)","v":"0"}]
[null,279,{"$f":"'Puan İzleme Aracı'!C282&COUNTIF('Puan İzleme Aracı'!$C$4:C282,'Puan İzleme Aracı'!C282)","v":"0"}]
[null,280,{"$f":"'Puan İzleme Aracı'!C283&COUNTIF('Puan İzleme Aracı'!$C$4:C283,'Puan İzleme Aracı'!C283)","v":"0"}]
[null,281,{"$f":"'Puan İzleme Aracı'!C284&COUNTIF('Puan İzleme Aracı'!$C$4:C284,'Puan İzleme Aracı'!C284)","v":"0"}]
[null,282,{"$f":"'Puan İzleme Aracı'!C285&COUNTIF('Puan İzleme Aracı'!$C$4:C285,'Puan İzleme Aracı'!C285)","v":"0"}]
[null,283,{"$f":"'Puan İzleme Aracı'!C286&COUNTIF('Puan İzleme Aracı'!$C$4:C286,'Puan İzleme Aracı'!C286)","v":"0"}]
[null,284,{"$f":"'Puan İzleme Aracı'!C287&COUNTIF('Puan İzleme Aracı'!$C$4:C287,'Puan İzleme Aracı'!C287)","v":"0"}]
[null,285,{"$f":"'Puan İzleme Aracı'!C288&COUNTIF('Puan İzleme Aracı'!$C$4:C288,'Puan İzleme Aracı'!C288)","v":"0"}]
[null,286,{"$f":"'Puan İzleme Aracı'!C289&COUNTIF('Puan İzleme Aracı'!$C$4:C289,'Puan İzleme Aracı'!C289)","v":"0"}]
[null,287,{"$f":"'Puan İzleme Aracı'!C290&COUNTIF('Puan İzleme Aracı'!$C$4:C290,'Puan İzleme Aracı'!C290)","v":"0"}]
[null,288,{"$f":"'Puan İzleme Aracı'!C291&COUNTIF('Puan İzleme Aracı'!$C$4:C291,'Puan İzleme Aracı'!C291)","v":"0"}]
[null,289,{"$f":"'Puan İzleme Aracı'!C292&COUNTIF('Puan İzleme Aracı'!$C$4:C292,'Puan İzleme Aracı'!C292)","v":"0"}]
[null,290,{"$f":"'Puan İzleme Aracı'!C293&COUNTIF('Puan İzleme Aracı'!$C$4:C293,'Puan İzleme Aracı'!C293)","v":"0"}]
[null,291,{"$f":"'Puan İzleme Aracı'!C294&COUNTIF('Puan İzleme Aracı'!$C$4:C294,'Puan İzleme Aracı'!C294)","v":"0"}]
[null,292,{"$f":"'Puan İzleme Aracı'!C295&COUNTIF('Puan İzleme Aracı'!$C$4:C295,'Puan İzleme Aracı'!C295)","v":"0"}]
[null,293,{"$f":"'Puan İzleme Aracı'!C296&COUNTIF('Puan İzleme Aracı'!$C$4:C296,'Puan İzleme Aracı'!C296)","v":"0"}]
[null,294,{"$f":"'Puan İzleme Aracı'!C297&COUNTIF('Puan İzleme Aracı'!$C$4:C297,'Puan İzleme Aracı'!C297)","v":"0"}]
[null,295,{"$f":"'Puan İzleme Aracı'!C298&COUNTIF('Puan İzleme Aracı'!$C$4:C298,'Puan İzleme Aracı'!C298)","v":"0"}]
[null,296,{"$f":"'Puan İzleme Aracı'!C299&COUNTIF('Puan İzleme Aracı'!$C$4:C299,'Puan İzleme Aracı'!C299)","v":"0"}]
[null,297,{"$f":"'Puan İzleme Aracı'!C300&COUNTIF('Puan İzleme Aracı'!$C$4:C300,'Puan İzleme Aracı'!C300)","v":"0"}]
[null,298,{"$f":"'Puan İzleme Aracı'!C301&COUNTIF('Puan İzleme Aracı'!$C$4:C301,'Puan İzleme Aracı'!C301)","v":"0"}]
[null,299,{"$f":"'Puan İzleme Aracı'!C302&COUNTIF('Puan İzleme Aracı'!$C$4:C302,'Puan İzleme Aracı'!C302)","v":"0"}]
[null,300,{"$f":"'Puan İzleme Aracı'!C303&COUNTIF('Puan İzleme Aracı'!$C$4:C303,'Puan İzleme Aracı'!C303)","v":"0"}]
[null,301,{"$f":"'Puan İzleme Aracı'!C304&COUNTIF('Puan İzleme Aracı'!$C$4:C304,'Puan İzleme Aracı'!C304)","v":"0"}]
[null,302,{"$f":"'Puan İzleme Aracı'!C305&COUNTIF('Puan İzleme Aracı'!$C$4:C305,'Puan İzleme Aracı'!C305)","v":"0"}]
[null,303,{"$f":"'Puan İzleme Aracı'!C306&COUNTIF('Puan İzleme Aracı'!$C$4:C306,'Puan İzleme Aracı'!C306)","v":"0"}]
[null,304,{"$f":"'Puan İzleme Aracı'!C307&COUNTIF('Puan İzleme Aracı'!$C$4:C307,'Puan İzleme Aracı'!C307)","v":"0"}]
[null,305,{"$f":"'Puan İzleme Aracı'!C308&COUNTIF('Puan İzleme Aracı'!$C$4:C308,'Puan İzleme Aracı'!C308)","v":"0"}]
[null,306,{"$f":"'Puan İzleme Aracı'!C309&COUNTIF('Puan İzleme Aracı'!$C$4:C309,'Puan İzleme Aracı'!C309)","v":"0"}]
[null,307,{"$f":"'Puan İzleme Aracı'!C310&COUNTIF('Puan İzleme Aracı'!$C$4:C310,'Puan İzleme Aracı'!C310)","v":"0"}]
[null,308,{"$f":"'Puan İzleme Aracı'!C311&COUNTIF('Puan İzleme Aracı'!$C$4:C311,'Puan İzleme Aracı'!C311)","v":"0"}]
[null,309,{"$f":"'Puan İzleme Aracı'!C312&COUNTIF('Puan İzleme Aracı'!$C$4:C312,'Puan İzleme Aracı'!C312)","v":"0"}]
[null,310,{"$f":"'Puan İzleme Aracı'!C313&COUNTIF('Puan İzleme Aracı'!$C$4:C313,'Puan İzleme Aracı'!C313)","v":"0"}]
[null,311,{"$f":"'Puan İzleme Aracı'!C314&COUNTIF('Puan İzleme Aracı'!$C$4:C314,'Puan İzleme Aracı'!C314)","v":"0"}]
[null,312,{"$f":"'Puan İzleme Aracı'!C315&COUNTIF('Puan İzleme Aracı'!$C$4:C315,'Puan İzleme Aracı'!C315)","v":"0"}]
[null,313,{"$f":"'Puan İzleme Aracı'!C316&COUNTIF('Puan İzleme Aracı'!$C$4:C316,'Puan İzleme Aracı'!C316)","v":"0"}]
[null,314,{"$f":"'Puan İzleme Aracı'!C317&COUNTIF('Puan İzleme Aracı'!$C$4:C317,'Puan İzleme Aracı'!C317)","v":"0"}]
[null,315,{"$f":"'Puan İzleme Aracı'!C318&COUNTIF('Puan İzleme Aracı'!$C$4:C318,'Puan İzleme Aracı'!C318)","v":"0"}]
[null,316,{"$f":"'Puan İzleme Aracı'!C319&COUNTIF('Puan İzleme Aracı'!$C$4:C319,'Puan İzleme Aracı'!C319)","v":"0"}]
[null,317,{"$f":"'Puan İzleme Aracı'!C320&COUNTIF('Puan İzleme Aracı'!$C$4:C320,'Puan İzleme Aracı'!C320)","v":"0"}]
[null,318,{"$f":"'Puan İzleme Aracı'!C321&COUNTIF('Puan İzleme Aracı'!$C$4:C321,'Puan İzleme Aracı'!C321)","v":"0"}]
[null,319,{"$f":"'Puan İzleme Aracı'!C322&COUNTIF('Puan İzleme Aracı'!$C$4:C322,'Puan İzleme Aracı'!C322)","v":"0"}]
[null,320,{"$f":"'Puan İzleme Aracı'!C323&COUNTIF('Puan İzleme Aracı'!$C$4:C323,'Puan İzleme Aracı'!C323)","v":"0"}]
[null,321,{"$f":"'Puan İzleme Aracı'!C324&COUNTIF('Puan İzleme Aracı'!$C$4:C324,'Puan İzleme Aracı'!C324)","v":"0"}]
[null,322,{"$f":"'Puan İzleme Aracı'!C325&COUNTIF('Puan İzleme Aracı'!$C$4:C325,'Puan İzleme Aracı'!C325)","v":"0"}]
[null,323,{"$f":"'Puan İzleme Aracı'!C326&COUNTIF('Puan İzleme Aracı'!$C$4:C326,'Puan İzleme Aracı'!C326)","v":"0"}]
[null,324,{"$f":"'Puan İzleme Aracı'!C327&COUNTIF('Puan İzleme Aracı'!$C$4:C327,'Puan İzleme Aracı'!C327)","v":"0"}]
[null,325,{"$f":"'Puan İzleme Aracı'!C328&COUNTIF('Puan İzleme Aracı'!$C$4:C328,'Puan İzleme Aracı'!C328)","v":"0"}]
[null,326,{"$f":"'Puan İzleme Aracı'!C329&COUNTIF('Puan İzleme Aracı'!$C$4:C329,'Puan İzleme Aracı'!C329)","v":"0"}]
[null,327,{"$f":"'Puan İzleme Aracı'!C330&COUNTIF('Puan İzleme Aracı'!$C$4:C330,'Puan İzleme Aracı'!C330)","v":"0"}]
[null,328,{"$f":"'Puan İzleme Aracı'!C331&COUNTIF('Puan İzleme Aracı'!$C$4:C331,'Puan İzleme Aracı'!C331)","v":"0"}]
[null,329,{"$f":"'Puan İzleme Aracı'!C332&COUNTIF('Puan İzleme Aracı'!$C$4:C332,'Puan İzleme Aracı'!C332)","v":"0"}]
[null,330,{"$f":"'Puan İzleme Aracı'!C333&COUNTIF('Puan İzleme Aracı'!$C$4:C333,'Puan İzleme Aracı'!C333)","v":"0"}]
[null,331,{"$f":"'Puan İzleme Aracı'!C334&COUNTIF('Puan İzleme Aracı'!$C$4:C334,'Puan İzleme Aracı'!C334)","v":"0"}]
[null,332,{"$f":"'Puan İzleme Aracı'!C335&COUNTIF('Puan İzleme Aracı'!$C$4:C335,'Puan İzleme Aracı'!C335)","v":"0"}]
[null,333,{"$f":"'Puan İzleme Aracı'!C336&COUNTIF('Puan İzleme Aracı'!$C$4:C336,'Puan İzleme Aracı'!C336)","v":"0"}]
[null,334,{"$f":"'Puan İzleme Aracı'!C337&COUNTIF('Puan İzleme Aracı'!$C$4:C337,'Puan İzleme Aracı'!C337)","v":"0"}]
[null,335,{"$f":"'Puan İzleme Aracı'!C338&COUNTIF('Puan İzleme Aracı'!$C$4:C338,'Puan İzleme Aracı'!C338)","v":"0"}]
[null,336,{"$f":"'Puan İzleme Aracı'!C339&COUNTIF('Puan İzleme Aracı'!$C$4:C339,'Puan İzleme Aracı'!C339)","v":"0"}]
[null,337,{"$f":"'Puan İzleme Aracı'!C340&COUNTIF('Puan İzleme Aracı'!$C$4:C340,'Puan İzleme Aracı'!C340)","v":"0"}]
[null,338,{"$f":"'Puan İzleme Aracı'!C341&COUNTIF('Puan İzleme Aracı'!$C$4:C341,'Puan İzleme Aracı'!C341)","v":"0"}]
[null,339,{"$f":"'Puan İzleme Aracı'!C342&COUNTIF('Puan İzleme Aracı'!$C$4:C342,'Puan İzleme Aracı'!C342)","v":"0"}]
[null,340,{"$f":"'Puan İzleme Aracı'!C343&COUNTIF('Puan İzleme Aracı'!$C$4:C343,'Puan İzleme Aracı'!C343)","v":"0"}]
[null,341,{"$f":"'Puan İzleme Aracı'!C344&COUNTIF('Puan İzleme Aracı'!$C$4:C344,'Puan İzleme Aracı'!C344)","v":"0"}]
[null,342,{"$f":"'Puan İzleme Aracı'!C345&COUNTIF('Puan İzleme Aracı'!$C$4:C345,'Puan İzleme Aracı'!C345)","v":"0"}]
[null,343,{"$f":"'Puan İzleme Aracı'!C346&COUNTIF('Puan İzleme Aracı'!$C$4:C346,'Puan İzleme Aracı'!C346)","v":"0"}]
[null,344,{"$f":"'Puan İzleme Aracı'!C347&COUNTIF('Puan İzleme Aracı'!$C$4:C347,'Puan İzleme Aracı'!C347)","v":"0"}]
[null,345,{"$f":"'Puan İzleme Aracı'!C348&COUNTIF('Puan İzleme Aracı'!$C$4:C348,'Puan İzleme Aracı'!C348)","v":"0"}]
[null,346,{"$f":"'Puan İzleme Aracı'!C349&COUNTIF('Puan İzleme Aracı'!$C$4:C349,'Puan İzleme Aracı'!C349)","v":"0"}]
[null,347,{"$f":"'Puan İzleme Aracı'!C350&COUNTIF('Puan İzleme Aracı'!$C$4:C350,'Puan İzleme Aracı'!C350)","v":"0"}]
[null,348,{"$f":"'Puan İzleme Aracı'!C351&COUNTIF('Puan İzleme Aracı'!$C$4:C351,'Puan İzleme Aracı'!C351)","v":"0"}]
[null,349,{"$f":"'Puan İzleme Aracı'!C352&COUNTIF('Puan İzleme Aracı'!$C$4:C352,'Puan İzleme Aracı'!C352)","v":"0"}]
[null,350,{"$f":"'Puan İzleme Aracı'!C353&COUNTIF('Puan İzleme Aracı'!$C$4:C353,'Puan İzleme Aracı'!C353)","v":"0"}]
[null,351,{"$f":"'Puan İzleme Aracı'!C354&COUNTIF('Puan İzleme Aracı'!$C$4:C354,'Puan İzleme Aracı'!C354)","v":"0"}]
[null,352,{"$f":"'Puan İzleme Aracı'!C355&COUNTIF('Puan İzleme Aracı'!$C$4:C355,'Puan İzleme Aracı'!C355)","v":"0"}]
[null,353,{"$f":"'Puan İzleme Aracı'!C356&COUNTIF('Puan İzleme Aracı'!$C$4:C356,'Puan İzleme Aracı'!C356)","v":"0"}]
[null,354,{"$f":"'Puan İzleme Aracı'!C357&COUNTIF('Puan İzleme Aracı'!$C$4:C357,'Puan İzleme Aracı'!C357)","v":"0"}]
[null,355,{"$f":"'Puan İzleme Aracı'!C358&COUNTIF('Puan İzleme Aracı'!$C$4:C358,'Puan İzleme Aracı'!C358)","v":"0"}]
[null,356,{"$f":"'Puan İzleme Aracı'!C359&COUNTIF('Puan İzleme Aracı'!$C$4:C359,'Puan İzleme Aracı'!C359)","v":"0"}]
[null,357,{"$f":"'Puan İzleme Aracı'!C360&COUNTIF('Puan İzleme Aracı'!$C$4:C360,'Puan İzleme Aracı'!C360)","v":"0"}]
[null,358,{"$f":"'Puan İzleme Aracı'!C361&COUNTIF('Puan İzleme Aracı'!$C$4:C361,'Puan İzleme Aracı'!C361)","v":"0"}]
[null,359,{"$f":"'Puan İzleme Aracı'!C362&COUNTIF('Puan İzleme Aracı'!$C$4:C362,'Puan İzleme Aracı'!C362)","v":"0"}]
[null,360,{"$f":"'Puan İzleme Aracı'!C363&COUNTIF('Puan İzleme Aracı'!$C$4:C363,'Puan İzleme Aracı'!C363)","v":"0"}]
[null,361,{"$f":"'Puan İzleme Aracı'!C364&COUNTIF('Puan İzleme Aracı'!$C$4:C364,'Puan İzleme Aracı'!C364)","v":"0"}]
[null,362,{"$f":"'Puan İzleme Aracı'!C365&COUNTIF('Puan İzleme Aracı'!$C$4:C365,'Puan İzleme Aracı'!C365)","v":"0"}]
[null,363,{"$f":"'Puan İzleme Aracı'!C366&COUNTIF('Puan İzleme Aracı'!$C$4:C366,'Puan İzleme Aracı'!C366)","v":"0"}]
[null,364,{"$f":"'Puan İzleme Aracı'!C367&COUNTIF('Puan İzleme Aracı'!$C$4:C367,'Puan İzleme Aracı'!C367)","v":"0"}]
[null,365,{"$f":"'Puan İzleme Aracı'!C368&COUNTIF('Puan İzleme Aracı'!$C$4:C368,'Puan İzleme Aracı'!C368)","v":"0"}]
[null,366,{"$f":"'Puan İzleme Aracı'!C369&COUNTIF('Puan İzleme Aracı'!$C$4:C369,'Puan İzleme Aracı'!C369)","v":"0"}]
[null,367,{"$f":"'Puan İzleme Aracı'!C370&COUNTIF('Puan İzleme Aracı'!$C$4:C370,'Puan İzleme Aracı'!C370)","v":"0"}]
[null,368,{"$f":"'Puan İzleme Aracı'!C371&COUNTIF('Puan İzleme Aracı'!$C$4:C371,'Puan İzleme Aracı'!C371)","v":"0"}]
[null,369,{"$f":"'Puan İzleme Aracı'!C372&COUNTIF('Puan İzleme Aracı'!$C$4:C372,'Puan İzleme Aracı'!C372)","v":"0"}]
[null,370,{"$f":"'Puan İzleme Aracı'!C373&COUNTIF('Puan İzleme Aracı'!$C$4:C373,'Puan İzleme Aracı'!C373)","v":"0"}]
[null,371,{"$f":"'Puan İzleme Aracı'!C374&COUNTIF('Puan İzleme Aracı'!$C$4:C374,'Puan İzleme Aracı'!C374)","v":"0"}]
[null,372,{"$f":"'Puan İzleme Aracı'!C375&COUNTIF('Puan İzleme Aracı'!$C$4:C375,'Puan İzleme Aracı'!C375)","v":"0"}]
[null,373,{"$f":"'Puan İzleme Aracı'!C376&COUNTIF('Puan İzleme Aracı'!$C$4:C376,'Puan İzleme Aracı'!C376)","v":"0"}]
[null,374,{"$f":"'Puan İzleme Aracı'!C377&COUNTIF('Puan İzleme Aracı'!$C$4:C377,'Puan İzleme Aracı'!C377)","v":"0"}]
[null,375,{"$f":"'Puan İzleme Aracı'!C378&COUNTIF('Puan İzleme Aracı'!$C$4:C378,'Puan İzleme Aracı'!C378)","v":"0"}]
[null,376,{"$f":"'Puan İzleme Aracı'!C379&COUNTIF('Puan İzleme Aracı'!$C$4:C379,'Puan İzleme Aracı'!C379)","v":"0"}]
[null,377,{"$f":"'Puan İzleme Aracı'!C380&COUNTIF('Puan İzleme Aracı'!$C$4:C380,'Puan İzleme Aracı'!C380)","v":"0"}]
[null,378,{"$f":"'Puan İzleme Aracı'!C381&COUNTIF('Puan İzleme Aracı'!$C$4:C381,'Puan İzleme Aracı'!C381)","v":"0"}]
[null,379,{"$f":"'Puan İzleme Aracı'!C382&COUNTIF('Puan İzleme Aracı'!$C$4:C382,'Puan İzleme Aracı'!C382)","v":"0"}]
[null,380,{"$f":"'Puan İzleme Aracı'!C383&COUNTIF('Puan İzleme Aracı'!$C$4:C383,'Puan İzleme Aracı'!C383)","v":"0"}]
[null,381,{"$f":"'Puan İzleme Aracı'!C384&COUNTIF('Puan İzleme Aracı'!$C$4:C384,'Puan İzleme Aracı'!C384)","v":"0"}]
[null,382,{"$f":"'Puan İzleme Aracı'!C385&COUNTIF('Puan İzleme Aracı'!$C$4:C385,'Puan İzleme Aracı'!C385)","v":"0"}]
[null,383,{"$f":"'Puan İzleme Aracı'!C386&COUNTIF('Puan İzleme Aracı'!$C$4:C386,'Puan İzleme Aracı'!C386)","v":"0"}]
[null,384,{"$f":"'Puan İzleme Aracı'!C387&COUNTIF('Puan İzleme Aracı'!$C$4:C387,'Puan İzleme Aracı'!C387)","v":"0"}]
[null,385,{"$f":"'Puan İzleme Aracı'!C388&COUNTIF('Puan İzleme Aracı'!$C$4:C388,'Puan İzleme Aracı'!C388)","v":"0"}]
[null,386,{"$f":"'Puan İzleme Aracı'!C389&COUNTIF('Puan İzleme Aracı'!$C$4:C389,'Puan İzleme Aracı'!C389)","v":"0"}]
[null,387,{"$f":"'Puan İzleme Aracı'!C390&COUNTIF('Puan İzleme Aracı'!$C$4:C390,'Puan İzleme Aracı'!C390)","v":"0"}]
[null,388,{"$f":"'Puan İzleme Aracı'!C391&COUNTIF('Puan İzleme Aracı'!$C$4:C391,'Puan İzleme Aracı'!C391)","v":"0"}]
[null,389,{"$f":"'Puan İzleme Aracı'!C392&COUNTIF('Puan İzleme Aracı'!$C$4:C392,'Puan İzleme Aracı'!C392)","v":"0"}]
[null,390,{"$f":"'Puan İzleme Aracı'!C393&COUNTIF('Puan İzleme Aracı'!$C$4:C393,'Puan İzleme Aracı'!C393)","v":"0"}]
[null,391,{"$f":"'Puan İzleme Aracı'!C394&COUNTIF('Puan İzleme Aracı'!$C$4:C394,'Puan İzleme Aracı'!C394)","v":"0"}]
[null,392,{"$f":"'Puan İzleme Aracı'!C395&COUNTIF('Puan İzleme Aracı'!$C$4:C395,'Puan İzleme Aracı'!C395)","v":"0"}]
[null,393,{"$f":"'Puan İzleme Aracı'!C396&COUNTIF('Puan İzleme Aracı'!$C$4:C396,'Puan İzleme Aracı'!C396)","v":"0"}]
[null,394,{"$f":"'Puan İzleme Aracı'!C397&COUNTIF('Puan İzleme Aracı'!$C$4:C397,'Puan İzleme Aracı'!C397)","v":"0"}]
[null,395,{"$f":"'Puan İzleme Aracı'!C398&COUNTIF('Puan İzleme Aracı'!$C$4:C398,'Puan İzleme Aracı'!C398)","v":"0"}]
[null,396,{"$f":"'Puan İzleme Aracı'!C399&COUNTIF('Puan İzleme Aracı'!$C$4:C399,'Puan İzleme Aracı'!C399)","v":"0"}]
[null,397,{"$f":"'Puan İzleme Aracı'!C400&COUNTIF('Puan İzleme Aracı'!$C$4:C400,'Puan İzleme Aracı'!C400)","v":"0"}]
[null,398,{"$f":"'Puan İzleme Aracı'!C401&COUNTIF('Puan İzleme Aracı'!$C$4:C401,'Puan İzleme Aracı'!C401)","v":"0"}]
[null,399,{"$f":"'Puan İzleme Aracı'!C402&COUNTIF('Puan İzleme Aracı'!$C$4:C402,'Puan İzleme Aracı'!C402)","v":"0"}]
[null,400,{"$f":"'Puan İzleme Aracı'!C403&COUNTIF('Puan İzleme Aracı'!$C$4:C403,'Puan İzleme Aracı'!C403)","v":"0"}]
[null,401,{"$f":"'Puan İzleme Aracı'!C404&COUNTIF('Puan İzleme Aracı'!$C$4:C404,'Puan İzleme Aracı'!C404)","v":"0"}]
[null,402,{"$f":"'Puan İzleme Aracı'!C405&COUNTIF('Puan İzleme Aracı'!$C$4:C405,'Puan İzleme Aracı'!C405)","v":"0"}]
[null,403,{"$f":"'Puan İzleme Aracı'!C406&COUNTIF('Puan İzleme Aracı'!$C$4:C406,'Puan İzleme Aracı'!C406)","v":"0"}]
[null,404,{"$f":"'Puan İzleme Aracı'!C407&COUNTIF('Puan İzleme Aracı'!$C$4:C407,'Puan İzleme Aracı'!C407)","v":"0"}]
[null,405,{"$f":"'Puan İzleme Aracı'!C408&COUNTIF('Puan İzleme Aracı'!$C$4:C408,'Puan İzleme Aracı'!C408)","v":"0"}]
[null,406,{"$f":"'Puan İzleme Aracı'!C409&COUNTIF('Puan İzleme Aracı'!$C$4:C409,'Puan İzleme Aracı'!C409)","v":"0"}]
[null,407,{"$f":"'Puan İzleme Aracı'!C410&COUNTIF('Puan İzleme Aracı'!$C$4:C410,'Puan İzleme Aracı'!C410)","v":"0"}]
[null,408,{"$f":"'Puan İzleme Aracı'!C411&COUNTIF('Puan İzleme Aracı'!$C$4:C411,'Puan İzleme Aracı'!C411)","v":"0"}]
[null,409,{"$f":"'Puan İzleme Aracı'!C412&COUNTIF('Puan İzleme Aracı'!$C$4:C412,'Puan İzleme Aracı'!C412)","v":"0"}]
[null,410,{"$f":"'Puan İzleme Aracı'!C413&COUNTIF('Puan İzleme Aracı'!$C$4:C413,'Puan İzleme Aracı'!C413)","v":"0"}]
[null,411,{"$f":"'Puan İzleme Aracı'!C414&COUNTIF('Puan İzleme Aracı'!$C$4:C414,'Puan İzleme Aracı'!C414)","v":"0"}]
[null,412,{"$f":"'Puan İzleme Aracı'!C415&COUNTIF('Puan İzleme Aracı'!$C$4:C415,'Puan İzleme Aracı'!C415)","v":"0"}]
[null,413,{"$f":"'Puan İzleme Aracı'!C416&COUNTIF('Puan İzleme Aracı'!$C$4:C416,'Puan İzleme Aracı'!C416)","v":"0"}]
[null,414,{"$f":"'Puan İzleme Aracı'!C417&COUNTIF('Puan İzleme Aracı'!$C$4:C417,'Puan İzleme Aracı'!C417)","v":"0"}]
[null,415,{"$f":"'Puan İzleme Aracı'!C418&COUNTIF('Puan İzleme Aracı'!$C$4:C418,'Puan İzleme Aracı'!C418)","v":"0"}]
[null,416,{"$f":"'Puan İzleme Aracı'!C419&COUNTIF('Puan İzleme Aracı'!$C$4:C419,'Puan İzleme Aracı'!C419)","v":"0"}]
[null,417,{"$f":"'Puan İzleme Aracı'!C420&COUNTIF('Puan İzleme Aracı'!$C$4:C420,'Puan İzleme Aracı'!C420)","v":"0"}]
[null,418,{"$f":"'Puan İzleme Aracı'!C421&COUNTIF('Puan İzleme Aracı'!$C$4:C421,'Puan İzleme Aracı'!C421)","v":"0"}]
[null,419,{"$f":"'Puan İzleme Aracı'!C422&COUNTIF('Puan İzleme Aracı'!$C$4:C422,'Puan İzleme Aracı'!C422)","v":"0"}]
[null,420,{"$f":"'Puan İzleme Aracı'!C423&COUNTIF('Puan İzleme Aracı'!$C$4:C423,'Puan İzleme Aracı'!C423)","v":"0"}]
[null,421,{"$f":"'Puan İzleme Aracı'!C424&COUNTIF('Puan İzleme Aracı'!$C$4:C424,'Puan İzleme Aracı'!C424)","v":"0"}]
[null,422,{"$f":"'Puan İzleme Aracı'!C425&COUNTIF('Puan İzleme Aracı'!$C$4:C425,'Puan İzleme Aracı'!C425)","v":"0"}]
[null,423,{"$f":"'Puan İzleme Aracı'!C426&COUNTIF('Puan İzleme Aracı'!$C$4:C426,'Puan İzleme Aracı'!C426)","v":"0"}]
[null,424,{"$f":"'Puan İzleme Aracı'!C427&COUNTIF('Puan İzleme Aracı'!$C$4:C427,'Puan İzleme Aracı'!C427)","v":"0"}]
[null,425,{"$f":"'Puan İzleme Aracı'!C428&COUNTIF('Puan İzleme Aracı'!$C$4:C428,'Puan İzleme Aracı'!C428)","v":"0"}]
[null,426,{"$f":"'Puan İzleme Aracı'!C429&COUNTIF('Puan İzleme Aracı'!$C$4:C429,'Puan İzleme Aracı'!C429)","v":"0"}]
[null,427,{"$f":"'Puan İzleme Aracı'!C430&COUNTIF('Puan İzleme Aracı'!$C$4:C430,'Puan İzleme Aracı'!C430)","v":"0"}]
[null,428,{"$f":"'Puan İzleme Aracı'!C431&COUNTIF('Puan İzleme Aracı'!$C$4:C431,'Puan İzleme Aracı'!C431)","v":"0"}]
[null,429,{"$f":"'Puan İzleme Aracı'!C432&COUNTIF('Puan İzleme Aracı'!$C$4:C432,'Puan İzleme Aracı'!C432)","v":"0"}]
[null,430,{"$f":"'Puan İzleme Aracı'!C433&COUNTIF('Puan İzleme Aracı'!$C$4:C433,'Puan İzleme Aracı'!C433)","v":"0"}]
[null,431,{"$f":"'Puan İzleme Aracı'!C434&COUNTIF('Puan İzleme Aracı'!$C$4:C434,'Puan İzleme Aracı'!C434)","v":"0"}]
[null,432,{"$f":"'Puan İzleme Aracı'!C435&COUNTIF('Puan İzleme Aracı'!$C$4:C435,'Puan İzleme Aracı'!C435)","v":"0"}]
[null,433,{"$f":"'Puan İzleme Aracı'!C436&COUNTIF('Puan İzleme Aracı'!$C$4:C436,'Puan İzleme Aracı'!C436)","v":"0"}]
[null,434,{"$f":"'Puan İzleme Aracı'!C437&COUNTIF('Puan İzleme Aracı'!$C$4:C437,'Puan İzleme Aracı'!C437)","v":"0"}]
[null,435,{"$f":"'Puan İzleme Aracı'!C438&COUNTIF('Puan İzleme Aracı'!$C$4:C438,'Puan İzleme Aracı'!C438)","v":"0"}]
[null,436,{"$f":"'Puan İzleme Aracı'!C439&COUNTIF('Puan İzleme Aracı'!$C$4:C439,'Puan İzleme Aracı'!C439)","v":"0"}]
[null,437,{"$f":"'Puan İzleme Aracı'!C440&COUNTIF('Puan İzleme Aracı'!$C$4:C440,'Puan İzleme Aracı'!C440)","v":"0"}]
[null,438,{"$f":"'Puan İzleme Aracı'!C441&COUNTIF('Puan İzleme Aracı'!$C$4:C441,'Puan İzleme Aracı'!C441)","v":"0"}]
[null,439,{"$f":"'Puan İzleme Aracı'!C442&COUNTIF('Puan İzleme Aracı'!$C$4:C442,'Puan İzleme Aracı'!C442)","v":"0"}]
[null,440,{"$f":"'Puan İzleme Aracı'!C443&COUNTIF('Puan İzleme Aracı'!$C$4:C443,'Puan İzleme Aracı'!C443)","v":"0"}]
[null,441,{"$f":"'Puan İzleme Aracı'!C444&COUNTIF('Puan İzleme Aracı'!$C$4:C444,'Puan İzleme Aracı'!C444)","v":"0"}]
[null,442,{"$f":"'Puan İzleme Aracı'!C445&COUNTIF('Puan İzleme Aracı'!$C$4:C445,'Puan İzleme Aracı'!C445)","v":"0"}]
[null,443,{"$f":"'Puan İzleme Aracı'!C446&COUNTIF('Puan İzleme Aracı'!$C$4:C446,'Puan İzleme Aracı'!C446)","v":"0"}]
[null,444,{"$f":"'Puan İzleme Aracı'!C447&COUNTIF('Puan İzleme Aracı'!$C$4:C447,'Puan İzleme Aracı'!C447)","v":"0"}]
[null,445,{"$f":"'Puan İzleme Aracı'!C448&COUNTIF('Puan İzleme Aracı'!$C$4:C448,'Puan İzleme Aracı'!C448)","v":"0"}]
[null,446,{"$f":"'Puan İzleme Aracı'!C449&COUNTIF('Puan İzleme Aracı'!$C$4:C449,'Puan İzleme Aracı'!C449)","v":"0"}]
[null,447,{"$f":"'Puan İzleme Aracı'!C450&COUNTIF('Puan İzleme Aracı'!$C$4:C450,'Puan İzleme Aracı'!C450)","v":"0"}]
[null,448,{"$f":"'Puan İzleme Aracı'!C451&COUNTIF('Puan İzleme Aracı'!$C$4:C451,'Puan İzleme Aracı'!C451)","v":"0"}]
[null,449,{"$f":"'Puan İzleme Aracı'!C452&COUNTIF('Puan İzleme Aracı'!$C$4:C452,'Puan İzleme Aracı'!C452)","v":"0"}]
[null,450,{"$f":"'Puan İzleme Aracı'!C453&COUNTIF('Puan İzleme Aracı'!$C$4:C453,'Puan İzleme Aracı'!C453)","v":"0"}]
[null,451,{"$f":"'Puan İzleme Aracı'!C454&COUNTIF('Puan İzleme Aracı'!$C$4:C454,'Puan İzleme Aracı'!C454)","v":"0"}]
[null,452,{"$f":"'Puan İzleme Aracı'!C455&COUNTIF('Puan İzleme Aracı'!$C$4:C455,'Puan İzleme Aracı'!C455)","v":"0"}]
[null,453,{"$f":"'Puan İzleme Aracı'!C456&COUNTIF('Puan İzleme Aracı'!$C$4:C456,'Puan İzleme Aracı'!C456)","v":"0"}]
[null,454,{"$f":"'Puan İzleme Aracı'!C457&COUNTIF('Puan İzleme Aracı'!$C$4:C457,'Puan İzleme Aracı'!C457)","v":"0"}]
[null,455,{"$f":"'Puan İzleme Aracı'!C458&COUNTIF('Puan İzleme Aracı'!$C$4:C458,'Puan İzleme Aracı'!C458)","v":"0"}]
[null,456,{"$f":"'Puan İzleme Aracı'!C459&COUNTIF('Puan İzleme Aracı'!$C$4:C459,'Puan İzleme Aracı'!C459)","v":"0"}]
[null,457,{"$f":"'Puan İzleme Aracı'!C460&COUNTIF('Puan İzleme Aracı'!$C$4:C460,'Puan İzleme Aracı'!C460)","v":"0"}]
[null,458,{"$f":"'Puan İzleme Aracı'!C461&COUNTIF('Puan İzleme Aracı'!$C$4:C461,'Puan İzleme Aracı'!C461)","v":"0"}]
[null,459,{"$f":"'Puan İzleme Aracı'!C462&COUNTIF('Puan İzleme Aracı'!$C$4:C462,'Puan İzleme Aracı'!C462)","v":"0"}]
[null,460,{"$f":"'Puan İzleme Aracı'!C463&COUNTIF('Puan İzleme Aracı'!$C$4:C463,'Puan İzleme Aracı'!C463)","v":"0"}]
[null,461,{"$f":"'Puan İzleme Aracı'!C464&COUNTIF('Puan İzleme Aracı'!$C$4:C464,'Puan İzleme Aracı'!C464)","v":"0"}]
[null,462,{"$f":"'Puan İzleme Aracı'!C465&COUNTIF('Puan İzleme Aracı'!$C$4:C465,'Puan İzleme Aracı'!C465)","v":"0"}]
[null,463,{"$f":"'Puan İzleme Aracı'!C466&COUNTIF('Puan İzleme Aracı'!$C$4:C466,'Puan İzleme Aracı'!C466)","v":"0"}]
[null,464,{"$f":"'Puan İzleme Aracı'!C467&COUNTIF('Puan İzleme Aracı'!$C$4:C467,'Puan İzleme Aracı'!C467)","v":"0"}]
[null,465,{"$f":"'Puan İzleme Aracı'!C468&COUNTIF('Puan İzleme Aracı'!$C$4:C468,'Puan İzleme Aracı'!C468)","v":"0"}]
[null,466,{"$f":"'Puan İzleme Aracı'!C469&COUNTIF('Puan İzleme Aracı'!$C$4:C469,'Puan İzleme Aracı'!C469)","v":"0"}]
[null,467,{"$f":"'Puan İzleme Aracı'!C470&COUNTIF('Puan İzleme Aracı'!$C$4:C470,'Puan İzleme Aracı'!C470)","v":"0"}]
[null,468,{"$f":"'Puan İzleme Aracı'!C471&COUNTIF('Puan İzleme Aracı'!$C$4:C471,'Puan İzleme Aracı'!C471)","v":"0"}]
[null,469,{"$f":"'Puan İzleme Aracı'!C472&COUNTIF('Puan İzleme Aracı'!$C$4:C472,'Puan İzleme Aracı'!C472)","v":"0"}]
[null,470,{"$f":"'Puan İzleme Aracı'!C473&COUNTIF('Puan İzleme Aracı'!$C$4:C473,'Puan İzleme Aracı'!C473)","v":"0"}]
[null,471,{"$f":"'Puan İzleme Aracı'!C474&COUNTIF('Puan İzleme Aracı'!$C$4:C474,'Puan İzleme Aracı'!C474)","v":"0"}]
[null,472,{"$f":"'Puan İzleme Aracı'!C475&COUNTIF('Puan İzleme Aracı'!$C$4:C475,'Puan İzleme Aracı'!C475)","v":"0"}]
[null,473,{"$f":"'Puan İzleme Aracı'!C476&COUNTIF('Puan İzleme Aracı'!$C$4:C476,'Puan İzleme Aracı'!C476)","v":"0"}]
[null,474,{"$f":"'Puan İzleme Aracı'!C477&COUNTIF('Puan İzleme Aracı'!$C$4:C477,'Puan İzleme Aracı'!C477)","v":"0"}]
[null,475,{"$f":"'Puan İzleme Aracı'!C478&COUNTIF('Puan İzleme Aracı'!$C$4:C478,'Puan İzleme Aracı'!C478)","v":"0"}]
[null,476,{"$f":"'Puan İzleme Aracı'!C479&COUNTIF('Puan İzleme Aracı'!$C$4:C479,'Puan İzleme Aracı'!C479)","v":"0"}]
[null,477,{"$f":"'Puan İzleme Aracı'!C480&COUNTIF('Puan İzleme Aracı'!$C$4:C480,'Puan İzleme Aracı'!C480)","v":"0"}]
[null,478,{"$f":"'Puan İzleme Aracı'!C481&COUNTIF('Puan İzleme Aracı'!$C$4:C481,'Puan İzleme Aracı'!C481)","v":"0"}]
[null,479,{"$f":"'Puan İzleme Aracı'!C482&COUNTIF('Puan İzleme Aracı'!$C$4:C482,'Puan İzleme Aracı'!C482)","v":"0"}]
[null,480,{"$f":"'Puan İzleme Aracı'!C483&COUNTIF('Puan İzleme Aracı'!$C$4:C483,'Puan İzleme Aracı'!C483)","v":"0"}]
[null,481,{"$f":"'Puan İzleme Aracı'!C484&COUNTIF('Puan İzleme Aracı'!$C$4:C484,'Puan İzleme Aracı'!C484)","v":"0"}]
[null,482,{"$f":"'Puan İzleme Aracı'!C485&COUNTIF('Puan İzleme Aracı'!$C$4:C485,'Puan İzleme Aracı'!C485)","v":"0"}]
[null,483,{"$f":"'Puan İzleme Aracı'!C486&COUNTIF('Puan İzleme Aracı'!$C$4:C486,'Puan İzleme Aracı'!C486)","v":"0"}]
[null,484,{"$f":"'Puan İzleme Aracı'!C487&COUNTIF('Puan İzleme Aracı'!$C$4:C487,'Puan İzleme Aracı'!C487)","v":"0"}]
[null,485,{"$f":"'Puan İzleme Aracı'!C488&COUNTIF('Puan İzleme Aracı'!$C$4:C488,'Puan İzleme Aracı'!C488)","v":"0"}]
[null,486,{"$f":"'Puan İzleme Aracı'!C489&COUNTIF('Puan İzleme Aracı'!$C$4:C489,'Puan İzleme Aracı'!C489)","v":"0"}]
[null,487,{"$f":"'Puan İzleme Aracı'!C490&COUNTIF('Puan İzleme Aracı'!$C$4:C490,'Puan İzleme Aracı'!C490)","v":"0"}]
[null,488,{"$f":"'Puan İzleme Aracı'!C491&COUNTIF('Puan İzleme Aracı'!$C$4:C491,'Puan İzleme Aracı'!C491)","v":"0"}]
[null,489,{"$f":"'Puan İzleme Aracı'!C492&COUNTIF('Puan İzleme Aracı'!$C$4:C492,'Puan İzleme Aracı'!C492)","v":"0"}]
[null,490,{"$f":"'Puan İzleme Aracı'!C493&COUNTIF('Puan İzleme Aracı'!$C$4:C493,'Puan İzleme Aracı'!C493)","v":"0"}]
[null,491,{"$f":"'Puan İzleme Aracı'!C494&COUNTIF('Puan İzleme Aracı'!$C$4:C494,'Puan İzleme Aracı'!C494)","v":"0"}]
[null,492,{"$f":"'Puan İzleme Aracı'!C495&COUNTIF('Puan İzleme Aracı'!$C$4:C495,'Puan İzleme Aracı'!C495)","v":"0"}]
[null,493,{"$f":"'Puan İzleme Aracı'!C496&COUNTIF('Puan İzleme Aracı'!$C$4:C496,'Puan İzleme Aracı'!C496)","v":"0"}]
[null,494,{"$f":"'Puan İzleme Aracı'!C497&COUNTIF('Puan İzleme Aracı'!$C$4:C497,'Puan İzleme Aracı'!C497)","v":"0"}]
[null,495,{"$f":"'Puan İzleme Aracı'!C498&COUNTIF('Puan İzleme Aracı'!$C$4:C498,'Puan İzleme Aracı'!C498)","v":"0"}]
[null,496,{"$f":"'Puan İzleme Aracı'!C499&COUNTIF('Puan İzleme Aracı'!$C$4:C499,'Puan İzleme Aracı'!C499)","v":"0"}]
[null,497,{"$f":"'Puan İzleme Aracı'!C500&COUNTIF('Puan İzleme Aracı'!$C$4:C500,'Puan İzleme Aracı'!C500)","v":"0"}]
[null,498,{"$f":"'Puan İzleme Aracı'!C501&COUNTIF('Puan İzleme Aracı'!$C$4:C501,'Puan İzleme Aracı'!C501)","v":"0"}]
[null,499,{"$f":"'Puan İzleme Aracı'!C502&COUNTIF('Puan İzleme Aracı'!$C$4:C502,'Puan İzleme Aracı'!C502)","v":"0"}]
[null,500,{"$f":"'Puan İzleme Aracı'!C503&COUNTIF('Puan İzleme Aracı'!$C$4:C503,'Puan İzleme Aracı'!C503)","v":"0"}]
[null,501,{"$f":"'Puan İzleme Aracı'!C504&COUNTIF('Puan İzleme Aracı'!$C$4:C504,'Puan İzleme Aracı'!C504)","v":"0"}]
[null,502,{"$f":"'Puan İzleme Aracı'!C505&COUNTIF('Puan İzleme Aracı'!$C$4:C505,'Puan İzleme Aracı'!C505)","v":"0"}]
[null,503,{"$f":"'Puan İzleme Aracı'!C506&COUNTIF('Puan İzleme Aracı'!$C$4:C506,'Puan İzleme Aracı'!C506)","v":"0"}]
[null,504,{"$f":"'Puan İzleme Aracı'!C507&COUNTIF('Puan İzleme Aracı'!$C$4:C507,'Puan İzleme Aracı'!C507)","v":"0"}]
[null,505,{"$f":"'Puan İzleme Aracı'!C508&COUNTIF('Puan İzleme Aracı'!$C$4:C508,'Puan İzleme Aracı'!C508)","v":"0"}]
[null,506,{"$f":"'Puan İzleme Aracı'!C509&COUNTIF('Puan İzleme Aracı'!$C$4:C509,'Puan İzleme Aracı'!C509)","v":"0"}]
[null,507,{"$f":"'Puan İzleme Aracı'!C510&COUNTIF('Puan İzleme Aracı'!$C$4:C510,'Puan İzleme Aracı'!C510)","v":"0"}]
[null,508,{"$f":"'Puan İzleme Aracı'!C511&COUNTIF('Puan İzleme Aracı'!$C$4:C511,'Puan İzleme Aracı'!C511)","v":"0"}]
[null,509,{"$f":"'Puan İzleme Aracı'!C512&COUNTIF('Puan İzleme Aracı'!$C$4:C512,'Puan İzleme Aracı'!C512)","v":"0"}]
[null,510,{"$f":"'Puan İzleme Aracı'!C513&COUNTIF('Puan İzleme Aracı'!$C$4:C513,'Puan İzleme Aracı'!C513)","v":"0"}]
[null,511,{"$f":"'Puan İzleme Aracı'!C514&COUNTIF('Puan İzleme Aracı'!$C$4:C514,'Puan İzleme Aracı'!C514)","v":"0"}]
[null,512,{"$f":"'Puan İzleme Aracı'!C515&COUNTIF('Puan İzleme Aracı'!$C$4:C515,'Puan İzleme Aracı'!C515)","v":"0"}]
[null,513,{"$f":"'Puan İzleme Aracı'!C516&COUNTIF('Puan İzleme Aracı'!$C$4:C516,'Puan İzleme Aracı'!C516)","v":"0"}]
[null,514,{"$f":"'Puan İzleme Aracı'!C517&COUNTIF('Puan İzleme Aracı'!$C$4:C517,'Puan İzleme Aracı'!C517)","v":"0"}]
[null,515,{"$f":"'Puan İzleme Aracı'!C518&COUNTIF('Puan İzleme Aracı'!$C$4:C518,'Puan İzleme Aracı'!C518)","v":"0"}]
[null,516,{"$f":"'Puan İzleme Aracı'!C519&COUNTIF('Puan İzleme Aracı'!$C$4:C519,'Puan İzleme Aracı'!C519)","v":"0"}]
[null,517,{"$f":"'Puan İzleme Aracı'!C520&COUNTIF('Puan İzleme Aracı'!$C$4:C520,'Puan İzleme Aracı'!C520)","v":"0"}]
[null,518,{"$f":"'Puan İzleme Aracı'!C521&COUNTIF('Puan İzleme Aracı'!$C$4:C521,'Puan İzleme Aracı'!C521)","v":"0"}]
[null,519,{"$f":"'Puan İzleme Aracı'!C522&COUNTIF('Puan İzleme Aracı'!$C$4:C522,'Puan İzleme Aracı'!C522)","v":"0"}]
[null,520,{"$f":"'Puan İzleme Aracı'!C523&COUNTIF('Puan İzleme Aracı'!$C$4:C523,'Puan İzleme Aracı'!C523)","v":"0"}]
[null,521,{"$f":"'Puan İzleme Aracı'!C524&COUNTIF('Puan İzleme Aracı'!$C$4:C524,'Puan İzleme Aracı'!C524)","v":"0"}]
[null,522,{"$f":"'Puan İzleme Aracı'!C525&COUNTIF('Puan İzleme Aracı'!$C$4:C525,'Puan İzleme Aracı'!C525)","v":"0"}]
[null,523,{"$f":"'Puan İzleme Aracı'!C526&COUNTIF('Puan İzleme Aracı'!$C$4:C526,'Puan İzleme Aracı'!C526)","v":"0"}]
[null,524,{"$f":"'Puan İzleme Aracı'!C527&COUNTIF('Puan İzleme Aracı'!$C$4:C527,'Puan İzleme Aracı'!C527)","v":"0"}]
[null,525,{"$f":"'Puan İzleme Aracı'!C528&COUNTIF('Puan İzleme Aracı'!$C$4:C528,'Puan İzleme Aracı'!C528)","v":"0"}]
[null,526,{"$f":"'Puan İzleme Aracı'!C529&COUNTIF('Puan İzleme Aracı'!$C$4:C529,'Puan İzleme Aracı'!C529)","v":"0"}]
[null,527,{"$f":"'Puan İzleme Aracı'!C530&COUNTIF('Puan İzleme Aracı'!$C$4:C530,'Puan İzleme Aracı'!C530)","v":"0"}]
[null,528,{"$f":"'Puan İzleme Aracı'!C531&COUNTIF('Puan İzleme Aracı'!$C$4:C531,'Puan İzleme Aracı'!C531)","v":"0"}]
[null,529,{"$f":"'Puan İzleme Aracı'!C532&COUNTIF('Puan İzleme Aracı'!$C$4:C532,'Puan İzleme Aracı'!C532)","v":"0"}]
[null,530,{"$f":"'Puan İzleme Aracı'!C533&COUNTIF('Puan İzleme Aracı'!$C$4:C533,'Puan İzleme Aracı'!C533)","v":"0"}]
[null,531,{"$f":"'Puan İzleme Aracı'!C534&COUNTIF('Puan İzleme Aracı'!$C$4:C534,'Puan İzleme Aracı'!C534)","v":"0"}]
[null,532,{"$f":"'Puan İzleme Aracı'!C535&COUNTIF('Puan İzleme Aracı'!$C$4:C535,'Puan İzleme Aracı'!C535)","v":"0"}]
[null,533,{"$f":"'Puan İzleme Aracı'!C536&COUNTIF('Puan İzleme Aracı'!$C$4:C536,'Puan İzleme Aracı'!C536)","v":"0"}]
[null,534,{"$f":"'Puan İzleme Aracı'!C537&COUNTIF('Puan İzleme Aracı'!$C$4:C537,'Puan İzleme Aracı'!C537)","v":"0"}]
[null,535,{"$f":"'Puan İzleme Aracı'!C538&COUNTIF('Puan İzleme Aracı'!$C$4:C538,'Puan İzleme Aracı'!C538)","v":"0"}]
[null,536,{"$f":"'Puan İzleme Aracı'!C539&COUNTIF('Puan İzleme Aracı'!$C$4:C539,'Puan İzleme Aracı'!C539)","v":"0"}]
[null,537,{"$f":"'Puan İzleme Aracı'!C540&COUNTIF('Puan İzleme Aracı'!$C$4:C540,'Puan İzleme Aracı'!C540)","v":"0"}]
[null,538,{"$f":"'Puan İzleme Aracı'!C541&COUNTIF('Puan İzleme Aracı'!$C$4:C541,'Puan İzleme Aracı'!C541)","v":"0"}]
[null,539,{"$f":"'Puan İzleme Aracı'!C542&COUNTIF('Puan İzleme Aracı'!$C$4:C542,'Puan İzleme Aracı'!C542)","v":"0"}]
[null,540,{"$f":"'Puan İzleme Aracı'!C543&COUNTIF('Puan İzleme Aracı'!$C$4:C543,'Puan İzleme Aracı'!C543)","v":"0"}]
[null,541,{"$f":"'Puan İzleme Aracı'!C544&COUNTIF('Puan İzleme Aracı'!$C$4:C544,'Puan İzleme Aracı'!C544)","v":"0"}]
[null,542,{"$f":"'Puan İzleme Aracı'!C545&COUNTIF('Puan İzleme Aracı'!$C$4:C545,'Puan İzleme Aracı'!C545)","v":"0"}]
[null,543,{"$f":"'Puan İzleme Aracı'!C546&COUNTIF('Puan İzleme Aracı'!$C$4:C546,'Puan İzleme Aracı'!C546)","v":"0"}]
[null,544,{"$f":"'Puan İzleme Aracı'!C547&COUNTIF('Puan İzleme Aracı'!$C$4:C547,'Puan İzleme Aracı'!C547)","v":"0"}]
[null,545,{"$f":"'Puan İzleme Aracı'!C548&COUNTIF('Puan İzleme Aracı'!$C$4:C548,'Puan İzleme Aracı'!C548)","v":"0"}]
[null,546,{"$f":"'Puan İzleme Aracı'!C549&COUNTIF('Puan İzleme Aracı'!$C$4:C549,'Puan İzleme Aracı'!C549)","v":"0"}]
[null,547,{"$f":"'Puan İzleme Aracı'!C550&COUNTIF('Puan İzleme Aracı'!$C$4:C550,'Puan İzleme Aracı'!C550)","v":"0"}]
[null,548,{"$f":"'Puan İzleme Aracı'!C551&COUNTIF('Puan İzleme Aracı'!$C$4:C551,'Puan İzleme Aracı'!C551)","v":"0"}]
[null,549,{"$f":"'Puan İzleme Aracı'!C552&COUNTIF('Puan İzleme Aracı'!$C$4:C552,'Puan İzleme Aracı'!C552)","v":"0"}]
[null,550,{"$f":"'Puan İzleme Aracı'!C553&COUNTIF('Puan İzleme Aracı'!$C$4:C553,'Puan İzleme Aracı'!C553)","v":"0"}]
[null,551,{"$f":"'Puan İzleme Aracı'!C554&COUNTIF('Puan İzleme Aracı'!$C$4:C554,'Puan İzleme Aracı'!C554)","v":"0"}]
[null,552,{"$f":"'Puan İzleme Aracı'!C555&COUNTIF('Puan İzleme Aracı'!$C$4:C555,'Puan İzleme Aracı'!C555)","v":"0"}]
[null,553,{"$f":"'Puan İzleme Aracı'!C556&COUNTIF('Puan İzleme Aracı'!$C$4:C556,'Puan İzleme Aracı'!C556)","v":"0"}]
[null,554,{"$f":"'Puan İzleme Aracı'!C557&COUNTIF('Puan İzleme Aracı'!$C$4:C557,'Puan İzleme Aracı'!C557)","v":"0"}]
[null,555,{"$f":"'Puan İzleme Aracı'!C558&COUNTIF('Puan İzleme Aracı'!$C$4:C558,'Puan İzleme Aracı'!C558)","v":"0"}]
[null,556,{"$f":"'Puan İzleme Aracı'!C559&COUNTIF('Puan İzleme Aracı'!$C$4:C559,'Puan İzleme Aracı'!C559)","v":"0"}]
[null,557,{"$f":"'Puan İzleme Aracı'!C560&COUNTIF('Puan İzleme Aracı'!$C$4:C560,'Puan İzleme Aracı'!C560)","v":"0"}]
[null,558,{"$f":"'Puan İzleme Aracı'!C561&COUNTIF('Puan İzleme Aracı'!$C$4:C561,'Puan İzleme Aracı'!C561)","v":"0"}]
[null,559,{"$f":"'Puan İzleme Aracı'!C562&COUNTIF('Puan İzleme Aracı'!$C$4:C562,'Puan İzleme Aracı'!C562)","v":"0"}]
[null,560,{"$f":"'Puan İzleme Aracı'!C563&COUNTIF('Puan İzleme Aracı'!$C$4:C563,'Puan İzleme Aracı'!C563)","v":"0"}]
[null,561,{"$f":"'Puan İzleme Aracı'!C564&COUNTIF('Puan İzleme Aracı'!$C$4:C564,'Puan İzleme Aracı'!C564)","v":"0"}]
[null,562,{"$f":"'Puan İzleme Aracı'!C565&COUNTIF('Puan İzleme Aracı'!$C$4:C565,'Puan İzleme Aracı'!C565)","v":"0"}]
[null,563,{"$f":"'Puan İzleme Aracı'!C566&COUNTIF('Puan İzleme Aracı'!$C$4:C566,'Puan İzleme Aracı'!C566)","v":"0"}]
[null,564,{"$f":"'Puan İzleme Aracı'!C567&COUNTIF('Puan İzleme Aracı'!$C$4:C567,'Puan İzleme Aracı'!C567)","v":"0"}]
[null,565,{"$f":"'Puan İzleme Aracı'!C568&COUNTIF('Puan İzleme Aracı'!$C$4:C568,'Puan İzleme Aracı'!C568)","v":"0"}]
[null,566,{"$f":"'Puan İzleme Aracı'!C569&COUNTIF('Puan İzleme Aracı'!$C$4:C569,'Puan İzleme Aracı'!C569)","v":"0"}]
[null,567,{"$f":"'Puan İzleme Aracı'!C570&COUNTIF('Puan İzleme Aracı'!$C$4:C570,'Puan İzleme Aracı'!C570)","v":"0"}]
[null,568,{"$f":"'Puan İzleme Aracı'!C571&COUNTIF('Puan İzleme Aracı'!$C$4:C571,'Puan İzleme Aracı'!C571)","v":"0"}]
[null,569,{"$f":"'Puan İzleme Aracı'!C572&COUNTIF('Puan İzleme Aracı'!$C$4:C572,'Puan İzleme Aracı'!C572)","v":"0"}]
[null,570,{"$f":"'Puan İzleme Aracı'!C573&COUNTIF('Puan İzleme Aracı'!$C$4:C573,'Puan İzleme Aracı'!C573)","v":"0"}]
[null,571,{"$f":"'Puan İzleme Aracı'!C574&COUNTIF('Puan İzleme Aracı'!$C$4:C574,'Puan İzleme Aracı'!C574)","v":"0"}]
[null,572,{"$f":"'Puan İzleme Aracı'!C575&COUNTIF('Puan İzleme Aracı'!$C$4:C575,'Puan İzleme Aracı'!C575)","v":"0"}]
[null,573,{"$f":"'Puan İzleme Aracı'!C576&COUNTIF('Puan İzleme Aracı'!$C$4:C576,'Puan İzleme Aracı'!C576)","v":"0"}]
[null,574,{"$f":"'Puan İzleme Aracı'!C577&COUNTIF('Puan İzleme Aracı'!$C$4:C577,'Puan İzleme Aracı'!C577)","v":"0"}]
[null,575,{"$f":"'Puan İzleme Aracı'!C578&COUNTIF('Puan İzleme Aracı'!$C$4:C578,'Puan İzleme Aracı'!C578)","v":"0"}]
[null,576,{"$f":"'Puan İzleme Aracı'!C579&COUNTIF('Puan İzleme Aracı'!$C$4:C579,'Puan İzleme Aracı'!C579)","v":"0"}]
[null,577,{"$f":"'Puan İzleme Aracı'!C580&COUNTIF('Puan İzleme Aracı'!$C$4:C580,'Puan İzleme Aracı'!C580)","v":"0"}]
[null,578,{"$f":"'Puan İzleme Aracı'!C581&COUNTIF('Puan İzleme Aracı'!$C$4:C581,'Puan İzleme Aracı'!C581)","v":"0"}]
[null,579,{"$f":"'Puan İzleme Aracı'!C582&COUNTIF('Puan İzleme Aracı'!$C$4:C582,'Puan İzleme Aracı'!C582)","v":"0"}]
[null,580,{"$f":"'Puan İzleme Aracı'!C583&COUNTIF('Puan İzleme Aracı'!$C$4:C583,'Puan İzleme Aracı'!C583)","v":"0"}]
[null,581,{"$f":"'Puan İzleme Aracı'!C584&COUNTIF('Puan İzleme Aracı'!$C$4:C584,'Puan İzleme Aracı'!C584)","v":"0"}]
[null,582,{"$f":"'Puan İzleme Aracı'!C585&COUNTIF('Puan İzleme Aracı'!$C$4:C585,'Puan İzleme Aracı'!C585)","v":"0"}]
[null,583,{"$f":"'Puan İzleme Aracı'!C586&COUNTIF('Puan İzleme Aracı'!$C$4:C586,'Puan İzleme Aracı'!C586)","v":"0"}]
[null,584,{"$f":"'Puan İzleme Aracı'!C587&COUNTIF('Puan İzleme Aracı'!$C$4:C587,'Puan İzleme Aracı'!C587)","v":"0"}]
[null,585,{"$f":"'Puan İzleme Aracı'!C588&COUNTIF('Puan İzleme Aracı'!$C$4:C588,'Puan İzleme Aracı'!C588)","v":"0"}]
[null,586,{"$f":"'Puan İzleme Aracı'!C589&COUNTIF('Puan İzleme Aracı'!$C$4:C589,'Puan İzleme Aracı'!C589)","v":"0"}]
[null,587,{"$f":"'Puan İzleme Aracı'!C590&COUNTIF('Puan İzleme Aracı'!$C$4:C590,'Puan İzleme Aracı'!C590)","v":"0"}]
[null,588,{"$f":"'Puan İzleme Aracı'!C591&COUNTIF('Puan İzleme Aracı'!$C$4:C591,'Puan İzleme Aracı'!C591)","v":"0"}]
[null,589,{"$f":"'Puan İzleme Aracı'!C592&COUNTIF('Puan İzleme Aracı'!$C$4:C592,'Puan İzleme Aracı'!C592)","v":"0"}]
[null,590,{"$f":"'Puan İzleme Aracı'!C593&COUNTIF('Puan İzleme Aracı'!$C$4:C593,'Puan İzleme Aracı'!C593)","v":"0"}]
[null,591,{"$f":"'Puan İzleme Aracı'!C594&COUNTIF('Puan İzleme Aracı'!$C$4:C594,'Puan İzleme Aracı'!C594)","v":"0"}]
[null,592,{"$f":"'Puan İzleme Aracı'!C595&COUNTIF('Puan İzleme Aracı'!$C$4:C595,'Puan İzleme Aracı'!C595)","v":"0"}]
[null,593,{"$f":"'Puan İzleme Aracı'!C596&COUNTIF('Puan İzleme Aracı'!$C$4:C596,'Puan İzleme Aracı'!C596)","v":"0"}]
[null,594,{"$f":"'Puan İzleme Aracı'!C597&COUNTIF('Puan İzleme Aracı'!$C$4:C597,'Puan İzleme Aracı'!C597)","v":"0"}]
[null,595,{"$f":"'Puan İzleme Aracı'!C598&COUNTIF('Puan İzleme Aracı'!$C$4:C598,'Puan İzleme Aracı'!C598)","v":"0"}]
[null,596,{"$f":"'Puan İzleme Aracı'!C599&COUNTIF('Puan İzleme Aracı'!$C$4:C599,'Puan İzleme Aracı'!C599)","v":"0"}]
[null,597,{"$f":"'Puan İzleme Aracı'!C600&COUNTIF('Puan İzleme Aracı'!$C$4:C600,'Puan İzleme Aracı'!C600)","v":"0"}]
[null,598,{"$f":"'Puan İzleme Aracı'!C601&COUNTIF('Puan İzleme Aracı'!$C$4:C601,'Puan İzleme Aracı'!C601)","v":"0"}]
[null,599,{"$f":"'Puan İzleme Aracı'!C602&COUNTIF('Puan İzleme Aracı'!$C$4:C602,'Puan İzleme Aracı'!C602)","v":"0"}]
[null,600,{"$f":"'Puan İzleme Aracı'!C603&COUNTIF('Puan İzleme Aracı'!$C$4:C603,'Puan İzleme Aracı'!C603)","v":"0"}]
[null,601,{"$f":"'Puan İzleme Aracı'!C604&COUNTIF('Puan İzleme Aracı'!$C$4:C604,'Puan İzleme Aracı'!C604)","v":"0"}]
[null,602,{"$f":"'Puan İzleme Aracı'!C605&COUNTIF('Puan İzleme Aracı'!$C$4:C605,'Puan İzleme Aracı'!C605)","v":"0"}]
[null,603,{"$f":"'Puan İzleme Aracı'!C606&COUNTIF('Puan İzleme Aracı'!$C$4:C606,'Puan İzleme Aracı'!C606)","v":"0"}]
[null,604,{"$f":"'Puan İzleme Aracı'!C607&COUNTIF('Puan İzleme Aracı'!$C$4:C607,'Puan İzleme Aracı'!C607)","v":"0"}]
[null,605,{"$f":"'Puan İzleme Aracı'!C608&COUNTIF('Puan İzleme Aracı'!$C$4:C608,'Puan İzleme Aracı'!C608)","v":"0"}]
[null,606,{"$f":"'Puan İzleme Aracı'!C609&COUNTIF('Puan İzleme Aracı'!$C$4:C609,'Puan İzleme Aracı'!C609)","v":"0"}]
[null,607,{"$f":"'Puan İzleme Aracı'!C610&COUNTIF('Puan İzleme Aracı'!$C$4:C610,'Puan İzleme Aracı'!C610)","v":"0"}]
[null,608,{"$f":"'Puan İzleme Aracı'!C611&COUNTIF('Puan İzleme Aracı'!$C$4:C611,'Puan İzleme Aracı'!C611)","v":"0"}]
[null,609,{"$f":"'Puan İzleme Aracı'!C612&COUNTIF('Puan İzleme Aracı'!$C$4:C612,'Puan İzleme Aracı'!C612)","v":"0"}]
[null,610,{"$f":"'Puan İzleme Aracı'!C613&COUNTIF('Puan İzleme Aracı'!$C$4:C613,'Puan İzleme Aracı'!C613)","v":"0"}]
[null,611,{"$f":"'Puan İzleme Aracı'!C614&COUNTIF('Puan İzleme Aracı'!$C$4:C614,'Puan İzleme Aracı'!C614)","v":"0"}]
[null,612,{"$f":"'Puan İzleme Aracı'!C615&COUNTIF('Puan İzleme Aracı'!$C$4:C615,'Puan İzleme Aracı'!C615)","v":"0"}]
[null,613,{"$f":"'Puan İzleme Aracı'!C616&COUNTIF('Puan İzleme Aracı'!$C$4:C616,'Puan İzleme Aracı'!C616)","v":"0"}]
[null,614,{"$f":"'Puan İzleme Aracı'!C617&COUNTIF('Puan İzleme Aracı'!$C$4:C617,'Puan İzleme Aracı'!C617)","v":"0"}]
[null,615,{"$f":"'Puan İzleme Aracı'!C618&COUNTIF('Puan İzleme Aracı'!$C$4:C618,'Puan İzleme Aracı'!C618)","v":"0"}]
[null,616,{"$f":"'Puan İzleme Aracı'!C619&COUNTIF('Puan İzleme Aracı'!$C$4:C619,'Puan İzleme Aracı'!C619)","v":"0"}]
[null,617,{"$f":"'Puan İzleme Aracı'!C620&COUNTIF('Puan İzleme Aracı'!$C$4:C620,'Puan İzleme Aracı'!C620)","v":"0"}]
[null,618,{"$f":"'Puan İzleme Aracı'!C621&COUNTIF('Puan İzleme Aracı'!$C$4:C621,'Puan İzleme Aracı'!C621)","v":"0"}]
[null,619,{"$f":"'Puan İzleme Aracı'!C622&COUNTIF('Puan İzleme Aracı'!$C$4:C622,'Puan İzleme Aracı'!C622)","v":"0"}]
[null,620,{"$f":"'Puan İzleme Aracı'!C623&COUNTIF('Puan İzleme Aracı'!$C$4:C623,'Puan İzleme Aracı'!C623)","v":"0"}]
[null,621,{"$f":"'Puan İzleme Aracı'!C624&COUNTIF('Puan İzleme Aracı'!$C$4:C624,'Puan İzleme Aracı'!C624)","v":"0"}]
[null,622,{"$f":"'Puan İzleme Aracı'!C625&COUNTIF('Puan İzleme Aracı'!$C$4:C625,'Puan İzleme Aracı'!C625)","v":"0"}]
[null,623,{"$f":"'Puan İzleme Aracı'!C626&COUNTIF('Puan İzleme Aracı'!$C$4:C626,'Puan İzleme Aracı'!C626)","v":"0"}]
[null,624,{"$f":"'Puan İzleme Aracı'!C627&COUNTIF('Puan İzleme Aracı'!$C$4:C627,'Puan İzleme Aracı'!C627)","v":"0"}]
[null,625,{"$f":"'Puan İzleme Aracı'!C628&COUNTIF('Puan İzleme Aracı'!$C$4:C628,'Puan İzleme Aracı'!C628)","v":"0"}]